Workbook

Sheet HOME
B3: View Disaster Statisitcs By:
B9: Input New Disaster Data | F9: Insert a new disaster occurrence into the database. All new disasters inserted will be used for calculaing disaster statistics.
B15: Input EPP Data | F15: When viewing disaster statistics, if the location/disaster combination lists "No EPP Record," you can insert new EPP data here for that location/disaster.
B21: Settings | F21: The settings allow you to change the region of a country or to insert a new country into the drop down boxes.

Sheet Region
C3: Select a Region | H3: Select a Disaster
C5: Region: | H5: Disaster:

Sheet Country
C3: Select a Country | H3: Select a Disaster
C5: Country: | H5: Disaster:

Sheet Multiple Countries
C3: Select multiple countries: | H3: Select a Disaster:
C5: Country 1: | H5: Disaster:
C7: Country 2:
C9: Country 3:
C11: Country 4:
C13: Country 5:

Sheet InputNewDisaster
A1: Input New Disaster Form | D1: Important Notes | G1: month | H1: day | I1: year
G2: 1 | H2: 1 | I2: 2009
A3: Disaster Date | G3: 2 | H3: 2 | I3: 2010
A4: Day | E4: If you insert disasters in the database, enter all disaters that have occurred in the specified country since your last update. If you only enter some disasters, the data will become skewed and the calculations will not be correct. Updated Dec. 12, 2009 from http://emdat.be/ | G4: 3 | H4: 3 | I4: 2011
A5: Month | G5: 4 | H5: 4 | I5: 2012
A6: Year | G6: 5 | H6: 5 | I6: 2013
A7: Disaster Data | G7: 6 | H7: 6 | I7: 2014
A8: Country | G8: 7 | H8: 7 | I8: 2015
A9: Disaster Type | E9: Go to "Settings" tab to insert new countries not in the drop-down. | G9: 8 | H9: 8 | I9: 2016
A10: Number of People Killed | H10: 9 | I10: 2017
A11: Total Number of People Affected (Not Killed) | H11: 20
H12: 21
H13: 22
H14: 23
H15: 24
H16: 25
H17: 26
H18: 27
H19: 28
H20: 29
H21: 30
H22: 31

Sheet EditRegionCountry
A1: List of Regions | B1: List of Disasters | C1: Country | D1: Change Region for Country | F1: Use this form to:
A3: Asia | B3: Earthquake | C3: Afghanistan | D3: Asia
A4: East and Central Africa | B4: Flood | C4: Angola | D4: Southern Africa | G4: Add a new Country: Type country name into first empty cell at the bottom of the left column. Select all country and region cells and use Excel 'Data' menu to alphabetize the list.
A5: Latin America and Carribean | B5: Mass Movement | C5: Bangladesh | D5: Asia
A6: Middle East and Europe | B6: Storm | C6: Benin | D6: West Africa
A7: Southern Africa | B7: Volcano | C7: Bolivia | D7: Latin America and Carribean
A8: West Africa | B8: Aggregate | C8: Bosnia-Hercegovenia | D8: Middle East and Europe | G8: Assign Countries to Regions: Click on region and select from the drop down list which region you would like the country to be assigned to.
C9: Brazil | D9: Latin America and Carribean
C10: Burundi | D10: East and Central Africa
C11: Cambodia | D11: Asia
C12: Cameroon | D12: West Africa | G12: Click "Update Database" button after making changes to this page
C13: Chad | D13: West Africa
C14: Colombia | D14: Latin America and Carribean
C15: Cuba | D15: Latin America and Carribean
C16: East Timor | D16: Asia
C17: Ecuador | D17: Latin America and Carribean
C18: Egypt | D18: Middle East and Europe
C19: El Salvador | D19: Latin America and Carribean
C20: Ethiopia | D20: East and Central Africa
C21: Georgia | D21: Middle East and Europe
C22: Ghana | D22: West Africa
C23: Guatemala | D23: Latin America and Carribean
C24: Haiti | D24: Latin America and Carribean
C25: Honduras | D25: Latin America and Carribean
C26: India | D26: Asia
C27: Indonesia | D27: Asia
C28: Jordan | D28: Middle East and Europe
C29: Kenya | D29: East and Central Africa
C30: Lao P Dem Rep | D30: Asia
C31: Liberia | D31: West Africa
C32: Madagascar | D32: Southern Africa
C33: Malawi | D33: Southern Africa
C34: Mali | D34: West Africa
C35: Morocco | D35: West Africa
C36: Mozambique | D36: Southern Africa
C37: Myanmar | D37: Asia
C38: Nepal | D38: Asia
C39: Nicaragua | D39: Latin America and Carribean
C40: Niger | D40: West Africa
C41: Pakistan | D41: Asia
C42: Papua New Guinea | D42: Asia
C43: Peru | D43: Latin America and Carribean
C44: Rwanda | D44: East and Central Africa
C45: Serbia | D45: Middle East and Europe
C46: Serbia Montenegro | D46: Middle East and Europe
C47: Sierra Leone | D47: West Africa
C48: Somalia | D48: East and Central Africa
C49: South Africa | D49: Southern Africa
C50: Sri Lanka | D50: Asia
C51: Tanzania Uni Rep | D51: East and Central Africa
C52: Thailand | D52: Asia
C53: Timor-Leste | D53: Asia
C54: Togo | D54: West Africa
C55: Uganda | D55: East and Central Africa
C56: Viet Nam | D56: Asia
C57: Yemen | D57: Middle East and Europe
C58: Zambia | D58: Southern Africa
C59: Zimbabwe | D59: Southern Africa
E65: *See user manual to add more countries beyond here.

Sheet InputEPP
A1: Input EPP Data
A3: Disaster Data
A4: Country
A5: Disaster Type
A6: Number of People Killed
A7: Estimated Total Number of People Affected (Not Killed)

Sheet Output_Truc
B3: Location | C3: Latin America and Carribean | F3: EPP: Population Affected | I3: No EPP Record
B5: Disaster | C5: Flood | F5: (EMDAT-EPP)% Difference | I5: No EPP Record
B7: Mean | C7: 122335.409 | R7: 0.1
R8: 0.2
B9: Count | C9: 338 | E9: TRUE | G9: Enter Response Level | H9: Choose a percentage of population affected to respond to. | R9: 0.3
G10: 1 | R10: 0.4
G11: Response Population | R11: 0.5
B12: The population affected is expected to be less than: | G12: =C12*$G$10 -> 0 | R12: 0.6
R13: 0.7
C14: 4287 | D14: for 20% of disasters | G14: =C14*G10 -> 4287 | R14: 0.8
R15: 0.9
D16: for 30% of disasters | G16: =C16*G10 -> 0 | R16: 1
C18: 17973 | D18: for 40% of disasters | G18: =C18*G10 -> 17973
C20: 34814 | D20: for 50% of disasters | G20: =C20*G10 -> 34814
C22: 60891 | D22: for 60% of disasters | G22: =C22*G10 -> 60891
C26: 154808 | D26: for 80% of disasters | G26: =C26*G10 -> 154808
G28: =C28*G10 -> 0
C30: 901538 | D30: for 99% of disasters | G30: =C30*G10 -> 901538
C38: Seasonality: Number of Disasters By Month
C59: Average Population Affected by Disaster Per Year

Sheet Multiple_Truc
B3: Locations | C3: Benin, Haiti, Guatemala | F3: EPP: Population Affected | I3: No EPP Record
B5: Disaster | C5: Flood | F5: (EMDAT-EPP)% Difference | I5: No EPP Record
B7: Mean | C7: 60242.24853 | R7: 0.1
R8: 0.2
B9: Count | C9: 60 | E9: TRUE | G9: Enter Response Level | H9: Choose a percentage of population affected to respond to. | R9: 0.3
G10: 1 | R10: 0.4
G11: Response Population | R11: 0.5
B12: The population affected is expected to be less than: | G12: =C12*$G$10 -> 0 | R12: 0.6
R13: 0.7
C14: 2127 | D14: for 20% of disasters | G14: =C14*G10 -> 2127 | R14: 0.8
R15: 0.9
D16: for 30% of disasters | G16: =C16*G10 -> 0 | R16: 1
C18: 9996 | D18: for 40% of disasters | G18: =C18*G10 -> 9996
C20: 16667 | D20: for 50% of disasters | G20: =C20*G10 -> 16667
C22: 28228 | D22: for 60% of disasters | G22: =C22*G10 -> 28228
C26: 89068 | D26: for 80% of disasters | G26: =C26*G10 -> 89068
G28: =C28*G10 -> 0
C30: 381449 | D30: for 99% of disasters | G30: =C30*G10 -> 381449
C40: Seasonality: Number of Disasters By Month
C61: Average Population Affected by Disaster Per Year

Sheet OL
B4: Outlier Disasters
B5: Date (M/D/Y) | C5: Region | D5: Country | E5: Disaster Type | F5: Population Affected
B6: 11/0/1970 | C6: Latin America and Carribean | D6: Colombia | E6: Flood | F6: 10531035.74
B7: 1/0/1983 | C7: Latin America and Carribean | D7: Brazil | E7: Flood | F7: 4403719.773
B8: 1988-02-02 | C8: Latin America and Carribean | D8: Brazil | E8: Flood | F8: 4018897.853

Sheet OLM
B4: Outlier Disasters
B5: Date (M/D/Y) | C5: Region | D5: Country | E5: Disaster Type | F5: Population Affected

Sheet ItemRequirementsQ1
B3: ITEM | D3: REQUIREMENT | E3: UNIT | F3: PEOPLE/UNIT
B4: FOOD | H4: POPULATION RECEIVING AID
B5: 1 | C5: BP5 | D5: 1495546.218 | E5: Bars | F5: 0.0238 | H5: 35594
C6: <OR>
C7: PLUMPY NUT | D7: 1495546.218 | E7: Satchets | F7: 0.0238
B9: WATER
B10: 2 | C10: Tap Stands | D10: 23.72933333 | E10: Tap Stands | F10: 1500
B11: 3 | C11: Nor Aid Sanitation Module | D11: 1 | E11: Pump Set | F11: All | I11: These quantities can be changed to alter number of filtration units
C12: Nor Aid Sanitation Filters | D12: 3.954888889 | E12: Filters | F12: 9000
C13: <OR>
C14: EmWat Unit | D14: 1 | E14: Kit | F14: All
C15: EmWat Unit Filters | D15: 1.7797 | E15: Filters | F15: 20000 | I15: These quantities can be changed to alter item coverage.
C16: <OR>
C17: PUR Relief Kits | D17: 997030.8123 | E17: Packets | F17: 0.0357
B18: 4 | C18: Jerry Can | D18: 14237.6 | E18: Cans | F18: 2.5
H19: All calculations will update upon returning to this page.
B20: SHELTER
B21: 5 | C21: Family Tent | D21: 7118.8 | E21: Tents | F21: 5
C22: <OR>
C23: Plastic Sheeting (4X6 m) | D23: 7118.8 | E23: Sheets | F23: 5
B24: 6 | C24: Blanket | D24: 21442.16867 | E24: Blankets | F24: 1.66
B25: 7 | C25: Mosquito Net | D25: 14237.6 | E25: Nets | F25: 2.5
B26: 8 | C26: Plastic Sleeping Mat | D26: 14237.6 | E26: Mats | F26: 2.5
B28: HYGIENE
B29: 9 | C29: Hygiene Kit | D29: 7118.8 | E29: Kits | F29: 5

Sheet Master (hidden)
A1: Day | B1: Month | C1: Year | D1: End | E1: Region | F1: Country | G1: Location | H1: Type | I1: Sub Type | J1: Killed | K1: Tot. Affected | L1: Total Population Affected (Killed + Affected) | M1: popVarnum | N1: PopVar Totalpopaffected | O1: E[x] + X*σ T/F | P1: MaxVal
A2: 2 | B2: 1 | C2: 1902 | D2: 1902-02-01 | E2: Latin America and Carribean | F2: El Salvador | H2: Earthquake | I2: Tsunami | J2: 185 | L2: 185 | M2: 9.535248042 | N2: 1764.020888 | O2: 0 | P2: 402
A3: 8 | B3: 4 | C3: 1902 | D3: 1902-08-04 | E3: Latin America and Carribean | F3: Guatemala | H3: Volcano | I3: Volcanic eruption | J3: 1000 | L3: 1000 | M3: 10.42307692 | N3: 10423.07692 | O3: 0 | P3: 6599
A4: 18 | B4: 4 | C4: 1902 | D4: 18/04/1902 | E4: Latin America and Carribean | F4: Guatemala | G4: Quezaltenango, San Marcos ... | H4: Earthquake | I4: Earthquake (ground shaking) | J4: 2000 | L4: 2000 | M4: 10.42307692 | N4: 20846.15385 | O4: 0 | P4: 106084
A5: 4 | B5: 5 | C5: 1902 | D5: 1902-04-05 | E5: Asia | F5: Myanmar | G5: Rangoon | H5: Storm | I5: Tropical cyclone | J5: 600 | L5: 600 | M5: 4.76813446 | N5: 2860.880676 | O5: 0 | P5: 359999
A6: 24 | B6: 10 | C6: 1902 | D6: 24/10/1902 | E6: Latin America and Carribean | F6: Guatemala | H6: Volcano | I6: Volcanic eruption | J6: 6000 | L6: 6000 | M6: 10.42307692 | N6: 62538.46154 | O6: 0 | P6: 6599
A7: 5 | B7: 4 | C7: 1905 | D7: 1905-05-04 | E7: Asia | F7: India | G7: Kangra | H7: Earthquake | I7: Earthquake (ground shaking) | J7: 20000 | L7: 20000 | M7: 5.017356002 | N7: 100347.12 | O7: 0 | P7: 18701103
A8: 31 | B8: 1 | C8: 1906 | D8: 31/01/1906 | E8: Latin America and Carribean | F8: Colombia | G8: Tumako | H8: Earthquake | I8: Earthquake (ground shaking) | J8: 400 | L8: 400 | M8: 11.05677839 | N8: 4422.711356 | O8: 0 | P8: 86069
A9: 4 | B9: 2 | C9: 1906 | D9: 1906-04-02 | E9: Latin America and Carribean | F9: Nicaragua | G9: Masaya | H9: Earthquake | I9: Earthquake (ground shaking) | J9: 1000 | L9: 1000 | M9: 12.54393305 | N9: 12543.93305 | O9: 0 | P9: 24882
A10: 4 | B10: 2 | C10: 1907 | D10: 1907-04-02 | E10: Asia | F10: Indonesia | G10: Aceh coast (North Sumatra ... | H10: Earthquake | I10: Tsunami | J10: 400 | L10: 400 | M10: 5.683993824 | N10: 2273.59753 | O10: 0 | P10: 455328
A11: 0 | B11: 0 | C11: 1909 | D11: 00/00/1909 | E11: Asia | F11: Indonesia | G11: Java | H11: Volcano | I11: Volcanic eruption | J11: 5500 | L11: 5500 | M11: 5.683993824 | N11: 31261.96603 | O11: 0 | P11: 12865
A12: 21 | B12: 1 | C12: 1909 | D12: 21/01/1909 | E12: West Africa | F12: Morocco | G12: Tetouan | H12: Earthquake | I12: Earthquake (ground shaking) | J12: 100 | L12: 100 | M12: 6.781098291 | N12: 678.1098291 | O12: 0 | P12: 31
A13: 15 | B13: 10 | C13: 1909 | D13: 15/10/1909 | E13: Asia | F13: Bangladesh | G13: Bakerganj | H13: Storm | I13: Tropical cyclone | J13: 172 | L13: 172 | M13: 5.692685498 | N13: 979.1419057 | O13: 0 | P13: 1590000
A14: 12 | B14: 11 | C14: 1909 | D14: 1909-12-11 | E14: Latin America and Carribean | F14: Haiti | G14: Cul de Sac,Leogane | H14: Storm | I14: Tropical cyclone | J14: 150 | L14: 150 | M14: 5.899358974 | N14: 884.9038462 | O14: 0 | P14: 1165220
A15: 4 | B15: 10 | C15: 1913 | D15: 1913-04-10 | E15: Latin America and Carribean | F15: Peru | G15: Albancay | H15: Earthquake | I15: Earthquake (ground shaking) | J15: 150 | L15: 150 | M15: 7.888947507 | N15: 1183.342126 | O15: 0 | P15: 5070
A16: 12 | B16: 8 | C16: 1915 | D16: 1915-12-08 | E16: Latin America and Carribean | F16: Haiti | G16: South, Southwest area | H16: Storm | I16: Tropical cyclone | J16: 1600 | L16: 1600 | M16: 5.899358974 | N16: 9438.974359 | O16: 0 | P16: 1165220
A17: 21 | B17: 11 | C17: 1916 | D17: 21/11/1916 | E17: Asia | F17: India | G17: Cuddalore, Pondicherry | H17: Storm | I17: Tropical cyclone | J17: 300 | L17: 300 | M17: 4.094473394 | N17: 1228.342018 | O17: 0 | P17: 1010100
A18: 21 | B18: 1 | C18: 1917 | D18: 21/01/1917 | E18: Asia | F18: Indonesia | G18: Bali | H18: Earthquake | I18: Earthquake (ground shaking) | J18: 15000 | L18: 15000 | M18: 4.306047624 | N18: 64590.71436 | O18: 0 | P18: 455328
A19: 29 | B19: 12 | C19: 1917 | D19: 29/12/1917 | E19: Latin America and Carribean | F19: Guatemala | G19: Guatemala city | H19: Earthquake | I19: Earthquake (ground shaking) | J19: 2650 | L19: 2650 | M19: 7.493451564 | N19: 19857.64664 | O19: 0 | P19: 106084
A20: 0 | B20: 5 | C20: 1919 | D20: 00/05/1919 | E20: Asia | F20: Indonesia | G20: Small Island between Java ... | H20: Volcano | I20: Volcanic eruption | J20: 5000 | L20: 5000 | M20: 4.306047624 | N20: 21530.23812 | O20: 0 | P20: 12865
A21: 7 | B21: 5 | C21: 1923 | D21: 1923-07-05 | E21: Asia | F21: Bangladesh | G21: Cox's Bazar, Chittagong | H21: Storm | I21: Tropical cyclone | J21: 6 | K21: 25000 | L21: 25006 | M21: 4.577775953 | N21: 114471.8655 | O21: 0 | P21: 1590000
A22: 23 | B22: 9 | C22: 1924 | D22: 23/09/1924 | E22: Asia | F22: India | G22: Punjab province | H22: Storm | I22: Tropical cyclone | J22: 1242 | K22: 1000000 | L22: 1001242 | M22: 4.094473394 | N22: 4099558.73 | O22: 0 | P22: 1010100
A23: 2 | B23: 12 | C23: 1924 | D23: 1924-02-12 | E23: Asia | F23: Indonesia | G23: Wonosobo (Central Java) | H23: Earthquake | I23: Earthquake (ground shaking) | J23: 727 | K23: 11250 | L23: 11977 | M23: 4.306047624 | N23: 51573.5324 | O23: 0 | P23: 455328
A24: 19 | B24: 5 | C24: 1926 | D24: 19/05/1926 | E24: Asia | F24: Myanmar | G24: Arrakan | H24: Storm | I24: Tropical cyclone | J24: 2700 | K24: 40000 | L24: 42700 | M24: 3.628704956 | N24: 154945.7016 | O24: 0 | P24: 359999
A25: 20 | B25: 10 | C25: 1926 | D25: 20/10/1926 | E25: Latin America and Carribean | F25: Cuba | G25: Havana and suburbs | H25: Storm | I25: Tropical cyclone | J25: 600 | L25: 600 | M25: 4.453059679 | N25: 2671.835807 | O25: 0 | P25: 498895
A26: 5 | B26: 11 | C26: 1926 | D26: 1926-05-11 | E26: Latin America and Carribean | F26: Colombia | G26: Pereira | H26: Mass Movement | I26: Landslide | J26: 100 | L26: 100 | M26: 7.435092093 | N26: 743.5092093 | O26: 0 | P26: 4500
A27: 11 | B27: 7 | C27: 1927 | D27: 1927-11-07 | E27: Middle East and Europe | F27: Jordan | G27: Nablus | H27: Earthquake | I27: Earthquake (ground shaking) | J27: 242 | L27: 242 | M27: 15.69483489 | N27: 3798.150043 | O27: 0 | P27: 242
A28: 23 | B28: 7 | C28: 1927 | D28: 23/07/1927 | E28: Asia | F28: India | G28: Gujarat, Ahmedabad, Barod ... | H28: Storm | I28: Tropical cyclone | J28: 56 | K28: 40010 | L28: 40066 | M28: 4.094473394 | N28: 164049.171 | O28: 0 | P28: 1010100
A29: 1 | B29: 11 | C29: 1927 | D29: 1927-01-11 | E29: Asia | F29: India | G29: Nellore | H29: Storm | I29: Tropical cyclone | J29: 629 | L29: 629 | M29: 4.094473394 | N29: 2575.423765 | O29: 0 | P29: 1010100
A30: 1 | B30: 12 | C30: 1927 | D30: 1927-01-12 | E30: Asia | F30: Indonesia | G30: Sulawesi, Donggala | H30: Earthquake | I30: Earthquake (ground shaking) | J30: 50 | K30: 50 | L30: 100 | M30: 4.306047624 | N30: 430.6047624 | O30: 0 | P30: 455328
A31: 4 | B31: 8 | C31: 1928 | D31: 1928-04-08 | E31: Asia | F31: Indonesia | G31: Flores sea | H31: Earthquake | I31: Tsunami | J31: 128 | L31: 128 | M31: 4.306047624 | N31: 551.1740959 | O31: 0 | P31: 455328
A32: 19 | B32: 10 | C32: 1928 | D32: 19/10/1928 | E32: Asia | F32: India | G32: Godavari, Vizagapatnam | H32: Flood | J32: 36 | K32: 2000 | L32: 2036 | M32: 4.094473394 | N32: 8336.34783 | O32: 0 | P32: 5500325
A33: 0 | B33: 0 | C33: 1929 | D33: 00/00/1929 | E33: Latin America and Carribean | F33: Guatemala | H33: Volcano | I33: Volcanic eruption | J33: 5000 | L33: 5000 | M33: 7.493451564 | N33: 37467.25782 | O33: 0 | P33: 6599
A34: 0 | B34: 0 | C34: 1930 | D34: 00/00/1930 | E34: Asia | F34: Indonesia | H34: Volcano | I34: Volcanic eruption | J34: 1369 | L34: 1369 | M34: 4.306047624 | N34: 5894.979198 | O34: 0 | P34: 12865
A35: 5 | B35: 5 | C35: 1930 | D35: 1930-05-05 | E35: Asia | F35: Myanmar | G35: Pegu, Rangoon | H35: Earthquake | I35: Earthquake (ground shaking) | J35: 500 | L35: 500 | M35: 3.628704956 | N35: 1814.352478 | O35: 0 | P35: 91070
A36: 31 | B36: 3 | C36: 1931 | D36: 31/03/1931 | E36: Latin America and Carribean | F36: Nicaragua | G36: Managua | H36: Earthquake | I36: Earthquake (ground shaking) | J36: 1000 | L36: 1000 | M36: 9.002385471 | N36: 9002.385471 | O36: 0 | P36: 24882
A37: 10 | B37: 9 | C37: 1931 | D37: 1931-10-09 | E37: Latin America and Carribean | F37: Honduras | H37: Storm | I37: Tropical cyclone | J37: 1500 | L37: 1500 | M37: 10.78040461 | N37: 16170.60692 | O37: 0 | P37: 608000
A38: 13 | B38: 12 | C38: 1931 | D38: 13/12/1931 | E38: Asia | F38: Indonesia | H38: Volcano | I38: Volcanic eruption | J38: 1300 | L38: 1300 | M38: 4.306047624 | N38: 5597.861911 | O38: 0 | P38: 12865
A39: 14 | B39: 5 | C39: 1932 | D39: 14/05/1932 | E39: Asia | F39: Indonesia | G39: Tondano (North Sulawesi) | H39: Earthquake | I39: Earthquake (ground shaking) | J39: 6 | K39: 3075 | L39: 3081 | M39: 4.306047624 | N39: 13266.93273 | O39: 0 | P39: 455328
A40: 9 | B40: 11 | C40: 1932 | D40: 1932-09-11 | E40: Latin America and Carribean | F40: Cuba | G40: Santa Cruz Del Sur (Camag ... | H40: Storm | I40: Tropical cyclone | J40: 2500 | L40: 2500 | M40: 4.453059679 | N40: 11132.6492 | O40: 0 | P40: 498895
A41: 15 | B41: 1 | C41: 1934 | D41: 15/01/1934 | E41: Asia | F41: India | G41: Bihar province | H41: Earthquake | I41: Earthquake (ground shaking) | J41: 6000 | L41: 6000 | M41: 4.094473394 | N41: 24566.84036 | O41: 0 | P41: 18701103
A42: 15 | B42: 1 | C42: 1934 | D42: 15/01/1934 | E42: Asia | F42: Nepal | G42: Eastern Nepal | H42: Earthquake | I42: Earthquake (ground shaking) | J42: 9040 | L42: 9040 | M42: 4.619461304 | N42: 41759.93019 | O42: 0 | P42: 80147
A43: 8 | B43: 6 | C43: 1934 | D43: 1934-08-06 | E43: Latin America and Carribean | F43: El Salvador | H43: Storm | I43: Tropical cyclone | J43: 2000 | L43: 2000 | M43: 6.650098248 | N43: 13300.1965 | O43: 0 | P43: 256336
A44: 0 | B44: 0 | C44: 1935 | D44: 00/00/1935 | E44: Asia | F44: India | H44: Storm | I44: Tropical cyclone | J44: 60000 | L44: 60000 | M44: 4.094473394 | N44: 245668.4036 | O44: 0 | P44: 1010100
A45: 31 | B45: 5 | C45: 1935 | D45: 31/05/1935 | E45: Asia | F45: Pakistan | G45: Quetta (Baluchistan) | H45: Earthquake | I45: Earthquake (ground shaking) | J45: 60000 | L45: 60000 | M45: 5.892601091 | N45: 353556.0654 | O45: 0 | P45: 1266453
A46: 28 | B46: 9 | C46: 1935 | D46: 28/09/1935 | E46: Latin America and Carribean | F46: Cuba | H46: Storm | I46: Tropical cyclone | J46: 35 | K46: 500 | L46: 535 | M46: 4.453059679 | N46: 2382.386928 | O46: 0 | P46: 498895
A47: 21 | B47: 10 | C47: 1935 | D47: 21/10/1935 | E47: Latin America and Carribean | F47: Haiti | H47: Storm | I47: Tropical cyclone | J47: 2150 | L47: 2150 | M47: 4.43547219 | N47: 9536.265208 | O47: 0 | P47: 1165220
A48: 13 | B48: 11 | C48: 1935 | D48: 13/11/1935 | E48: Asia | F48: India | G48: Madras, Negapatam | H48: Storm | J48: 100 | L48: 100 | M48: 4.094473394 | N48: 409.4473394 | O48: 0 | P48: 1010100
A49: 21 | B49: 4 | C49: 1936 | D49: 21/04/1936 | E49: Asia | F49: Myanmar | G49: Arakan Coast | H49: Storm | I49: Tropical cyclone | J49: 1000 | K49: 150000 | L49: 151000 | M49: 3.628704956 | N49: 547934.4484 | O49: 0 | P49: 359999
A50: 28 | B50: 10 | C50: 1936 | D50: 28/10/1936 | E50: Asia | F50: India | G50: Guntur (Madras) | H50: Storm | I50: Tropical cyclone | J50: 233 | L50: 233 | M50: 4.094473394 | N50: 954.0123008 | O50: 0 | P50: 1010100
A51: 29 | B51: 5 | C51: 1937 | D51: 29/05/1937 | E51: Asia | F51: Papua New Guinea | G51: Rabaul | H51: Volcano | I51: Volcanic eruption | J51: 506 | K51: 7500 | L51: 8006 | M51: 4.361758808 | N51: 34920.24101 | O51: 0 | P51: 0
A52: 20 | B52: 5 | C52: 1938 | D52: 20/05/1938 | E52: Asia | F52: Indonesia | G52: Tomini Gulf (Central Sula ... | H52: Earthquake | I52: Earthquake (ground shaking) | J52: 17 | K52: 4710 | L52: 4727 | M52: 4.306047624 | N52: 20354.68712 | O52: 0 | P52: 455328
A53: 24 | B53: 5 | C53: 1940 | D53: 24/05/1940 | E53: Latin America and Carribean | F53: Peru | G53: Callao | H53: Earthquake | I53: Earthquake (ground shaking) | J53: 249 | L53: 249 | M53: 5.903533101 | N53: 1469.979742 | O53: 0 | P53: 5070
A54: 21 | B54: 5 | C54: 1941 | D54: 21/05/1941 | E54: Asia | F54: Bangladesh | G54: Bhola, East Meghna estuar ... | H54: Storm | I54: Tropical cyclone | J54: 5000 | L54: 5000 | M54: 3.462866407 | N54: 17314.33203 | O54: 0 | P54: 1590000
A55: 14 | B55: 5 | C55: 1942 | D55: 14/05/1942 | E55: Latin America and Carribean | F55: Ecuador | G55: Guayas province | H55: Earthquake | I55: Earthquake (ground shaking) | J55: 200 | L55: 200 | M55: 4.389020772 | N55: 877.8041543 | O55: 0 | P55: 200000
A56: 0 | B56: 10 | C56: 1942 | D56: 00/10/1942 | E56: Asia | F56: Bangladesh | G56: West Sundarbans | H56: Storm | I56: Tropical cyclone | J56: 61000 | L56: 61000 | M56: 3.462866407 | N56: 211234.8508 | O56: 0 | P56: 1590000
A57: 14 | B57: 10 | C57: 1942 | D57: 14/10/1942 | E57: Asia | F57: India | G57: Orissa, West Bengal | H57: Storm | I57: Tropical cyclone | J57: 40000 | L57: 40000 | M57: 3.171590786 | N57: 126863.6314 | O57: 0 | P57: 1010100
A58: 30 | B58: 1 | C58: 1943 | D58: 30/01/1943 | E58: Latin America and Carribean | F58: Peru | G58: Yanaoca | H58: Earthquake | I58: Earthquake (ground shaking) | J58: 200 | L58: 200 | M58: 3.918118695 | N58: 783.623739 | O58: 0 | P58: 5070
A59: 23 | B59: 7 | C59: 1943 | D59: 23/07/1943 | E59: Asia | F59: Indonesia | G59: Jogyakarta (Central Java) ... | H59: Earthquake | I59: Earthquake (ground shaking) | J59: 213 | K59: 16096 | L59: 16309 | M59: 2.928101424 | N59: 47754.40613 | O59: 0 | P59: 455328
A60: 24 | B60: 7 | C60: 1943 | D60: 24/07/1943 | E60: Asia | F60: India | G60: Rajputana | H60: Storm | I60: Tropical cyclone | J60: 5000 | L60: 5000 | M60: 3.171590786 | N60: 15857.95393 | O60: 0 | P60: 1010100
A61: 3 | B61: 10 | C61: 1943 | D61: 1943-03-10 | E61: Asia | F61: India | G61: Madras | H61: Storm | K61: 30000 | L61: 30000 | M61: 3.171590786 | N61: 95147.72359 | O61: 0 | P61: 1010100
A62: 14 | B62: 6 | C62: 1944 | D62: 14/06/1944 | E62: Asia | F62: India | G62: Assam | H62: Storm | I62: Tropical cyclone | J62: 304 | L62: 304 | M62: 3.171590786 | N62: 964.163599 | O62: 0 | P62: 1010100
A63: 27 | B63: 7 | C63: 1944 | D63: 27/07/1944 | E63: Asia | F63: Pakistan | G63: Karachi | H63: Storm | I63: Tropical cyclone | K63: 10000 | L63: 10000 | M63: 4.493941391 | N63: 44939.41391 | O63: 0 | P63: 536171
A64: 18 | B64: 9 | C64: 1945 | D64: 18/09/1945 | E64: Asia | F64: India | G64: Gujarat, Punjab | H64: Storm | I64: Tropical cyclone | K64: 2000 | L64: 2000 | M64: 3.171590786 | N64: 6343.181572 | O64: 0 | P64: 1010100
A65: 27 | B65: 11 | C65: 1945 | D65: 27/11/1945 | E65: Asia | F65: Pakistan | G65: Makran | H65: Earthquake | I65: Earthquake (ground shaking) | J65: 4000 | L65: 4000 | M65: 4.493941391 | N65: 17975.76556 | O65: 0 | P65: 1266453
A66: 0 | B66: 11 | C66: 1946 | D66: 00/11/1946 | E66: Asia | F66: India | H66: Earthquake | I66: Earthquake (ground shaking) | J66: 400 | L66: 400 | M66: 3.171590786 | N66: 1268.636314 | O66: 0 | P66: 18701103
A67: 10 | B67: 11 | C67: 1946 | D67: 1946-10-11 | E67: Latin America and Carribean | F67: Peru | G67: Ancash, Quiches | H67: Earthquake | I67: Earthquake (ground shaking) | J67: 1400 | L67: 1400 | M67: 3.918118695 | N67: 5485.366173 | O67: 0 | P67: 5070
A68: 21 | B68: 10 | C68: 1947 | D68: 21/10/1947 | E68: Asia | F68: Bangladesh | G68: Cox's Bazar, Chittagong | H68: Storm | I68: Tropical cyclone | J68: 500 | L68: 500 | M68: 3.462866407 | N68: 1731.433203 | O68: 0 | P68: 1590000
A69: 1 | B69: 11 | C69: 1947 | D69: 1947-01-11 | E69: Latin America and Carribean | F69: Peru | G69: Satipo | H69: Earthquake | I69: Earthquake (ground shaking) | J69: 233 | L69: 233 | M69: 3.918118695 | N69: 912.921656 | O69: 0 | P69: 5070
A70: 18 | B70: 9 | C70: 1948 | D70: 18/09/1948 | E70: Asia | F70: India | G70: Assam | H70: Mass Movement | I70: Landslide | J70: 500 | L70: 500 | M70: 3.171590786 | N70: 1585.795393 | O70: 0 | P70: 100160
A71: 5 | B71: 10 | C71: 1948 | D71: 1948-05-10 | E71: Latin America and Carribean | F71: Cuba | H71: Storm | I71: Tropical cyclone | J71: 11 | K71: 300 | L71: 311 | M71: 1.983923941 | N71: 617.0003457 | O71: 0 | P71: 498895
A72: 0 | B72: 12 | C72: 1948 | D72: 00/12/1948 | E72: Latin America and Carribean | F72: Brazil | H72: Flood | J72: 200 | L72: 200 | M72: 3.762943697 | N72: 752.5887394 | O72: 0 | P72: 3021023
A73: 0 | B73: 0 | C73: 1949 | D73: 00/00/1949 | E73: Latin America and Carribean | F73: Colombia | H73: Volcano | I73: Volcanic eruption | J73: 1000 | L73: 1000 | M73: 3.813405797 | N73: 3813.405797 | O73: 0 | P73: 7076
A74: 0 | B74: 5 | C74: 1949 | D74: 00/05/1949 | E74: Latin America and Carribean | F74: Brazil | H74: Storm | J74: 100 | L74: 100 | M74: 3.762943697 | N74: 376.2943697 | O74: 0 | P74: 270050
A75: 5 | B75: 8 | C75: 1949 | D75: 1949-05-08 | E75: Latin America and Carribean | F75: Ecuador | G75: Pelileo, Ambato | H75: Earthquake | I75: Earthquake (ground shaking) | J75: 6000 | K75: 100000 | L75: 106000 | M75: 4.389020772 | N75: 465236.2018 | O75: 0 | P75: 200000
A76: 0 | B76: 10 | C76: 1949 | D76: 00/10/1949 | E76: Latin America and Carribean | F76: Guatemala | G76: East | H76: Flood | J76: 40000 | L76: 40000 | M76: 4.563826204 | N76: 182553.0482 | O76: 0 | P76: 476827
A77: 27 | B77: 10 | C77: 1949 | D77: 27/10/1949 | E77: Asia | F77: India | G77: East & West Godavari dist ... | H77: Storm | I77: Tropical cyclone | J77: 1000 | L77: 1000 | M77: 3.171590786 | N77: 3171.590786 | O77: 0 | P77: 1010100
A78: 0 | B78: 0 | C78: 1950 | D78: 00/00/1950 | E78: Asia | F78: Pakistan | H78: Flood | J78: 2900 | L78: 2900 | M78: 4.493941391 | N78: 13032.43003 | O78: 0 | P78: 4800474
A79: 21 | B79: 5 | C79: 1950 | D79: 21/05/1950 | E79: Latin America and Carribean | F79: Peru | G79: Cusco | H79: Earthquake | I79: Earthquake (ground shaking) | J79: 83 | K79: 200 | L79: 283 | M79: 3.918118695 | N79: 1108.827591 | O79: 0 | P79: 5070
A80: 0 | B80: 6 | C80: 1950 | D80: 00/06/1950 | E80: Asia | F80: India | H80: Flood | J80: 100 | L80: 100 | M80: 3.171590786 | N80: 317.1590786 | O80: 0 | P80: 5500325
A81: 9 | B81: 7 | C81: 1950 | D81: 1950-09-07 | E81: Latin America and Carribean | F81: Colombia | G81: Santander | H81: Earthquake | I81: Earthquake (ground shaking) | J81: 150 | K81: 40000 | L81: 40150 | M81: 3.813405797 | N81: 153108.2428 | O81: 0 | P81: 86069
A82: 11 | B82: 7 | C82: 1950 | D82: 1950-11-07 | E82: Asia | F82: India | G82: Saurashtra | H82: Flood | I82: General flood | J82: 45 | K82: 25000 | L82: 25045 | M82: 3.171590786 | N82: 79432.49124 | O82: 0 | P82: 5500325
A83: 15 | B83: 8 | C83: 1950 | D83: 15/08/1950 | E83: Asia | F83: India | G83: Assam province | H83: Earthquake | I83: Earthquake (ground shaking) | J83: 1500 | L83: 1500 | M83: 3.171590786 | N83: 4757.386179 | O83: 0 | P83: 18701103
A84: 0 | B84: 0 | C84: 1951 | D84: 00/00/1951 | E84: Asia | F84: Indonesia | H84: Volcano | I84: Volcanic eruption | J84: 1300 | L84: 1300 | M84: 2.928101424 | N84: 3806.531852 | O84: 0 | P84: 12865
A85: 0 | B85: 1 | C85: 1951 | D85: 00/01/1951 | E85: West Africa | F85: Morocco | H85: Flood | J85: 131 | L85: 131 | M85: 3.385101145 | N85: 443.44825 | O85: 0 | P85: 266455
A86: 15 | B86: 1 | C86: 1951 | D86: 20/01/1951 | E86: Asia | F86: Papua New Guinea | H86: Volcano | I86: Volcanic eruption | J86: 3000 | L86: 3000 | M86: 4.295325779 | N86: 12885.97734 | O86: 0 | P86: 0
A87: 0 | B87: 5 | C87: 1951 | D87: 00/05/1951 | E87: Asia | F87: Bangladesh | H87: Storm | J87: 200 | L87: 200 | M87: 3.462866407 | N87: 692.5732813 | O87: 0 | P87: 1590000
A88: 6 | B88: 5 | C88: 1951 | D88: 1951-06-05 | E88: Latin America and Carribean | F88: El Salvador | G88: Jucuapa, Chinameca | H88: Earthquake | I88: Earthquake (ground shaking) | J88: 1000 | L88: 1000 | M88: 3.764948454 | N88: 3764.948454 | O88: 0 | P88: 402
A89: 0 | B89: 8 | C89: 1951 | D89: 00/08/1951 | E89: Latin America and Carribean | F89: Nicaragua | H89: Earthquake | I89: Earthquake (ground shaking) | J89: 500 | L89: 500 | M89: 5.460837887 | N89: 2730.418944 | O89: 0 | P89: 24882
A90: 0 | B90: 9 | C90: 1952 | D90: 00/09/1952 | E90: Asia | F90: India | H90: Storm | J90: 350 | L90: 350 | M90: 3.171590786 | N90: 1110.056775 | O90: 0 | P90: 1010100
A91: 26 | B91: 11 | C91: 1952 | D91: 26/11/1952 | E91: Asia | F91: India | G91: Tanjore, Tiruchi | H91: Storm | I91: Tropical cyclone | J91: 400 | K91: 1000000 | L91: 1000400 | M91: 3.171590786 | N91: 3172859.423 | O91: 0 | P91: 1010100
A92: 0 | B92: 2 | C92: 1953 | D92: 00/02/1953 | E92: Asia | F92: Indonesia | H92: Flood | J92: 114 | L92: 114 | M92: 2.692017063 | N92: 306.8899452 | O92: 0 | P92: 3183701
A93: 26 | B93: 9 | C93: 1953 | D93: 26/09/1953 | E93: Asia | F93: Viet Nam | G93: Southern coast | H93: Storm | I93: Tropical cyclone | J93: 1000 | L93: 1000 | M93: 3.229180186 | N93: 3229.180186 | O93: 0 | P93: 1084809
A94: 10 | B94: 6 | C94: 1954 | D94: 1954-10-06 | E94: Asia | F94: Afghanistan | G94: North Region | H94: Earthquake | I94: Earthquake (ground shaking) | J94: 2000 | L94: 2000 | M94: 3.275334608 | N94: 6550.669216 | O94: 0 | P94: 121635
A95: 12 | B95: 7 | C95: 1954 | D95: 1954-12-07 | E95: Latin America and Carribean | F95: Colombia | G95: Medellin | H95: Mass Movement | I95: Landslide | J95: 140 | L95: 140 | M95: 3.253238151 | N95: 455.4533412 | O95: 0 | P95: 4500
A96: 0 | B96: 8 | C96: 1954 | D96: 00/08/1954 | E96: Asia | F96: Pakistan | H96: Flood | J96: 300 | L96: 300 | M96: 3.989670072 | N96: 1196.901022 | O96: 0 | P96: 4800474
A97: 5 | B97: 10 | C97: 1954 | D97: 18/10/1954 | E97: Latin America and Carribean | F97: Haiti | G97: Southwestern | H97: Storm | I97: Tropical cyclone | J97: 410 | K97: 250000 | L97: 250410 | M97: 2.734918276 | N97: 684850.8856 | O97: 0 | P97: 1165220
A98: 22 | B98: 10 | C98: 1954 | D98: 22/10/1954 | E98: Latin America and Carribean | F98: Haiti | G98: Berly | H98: Mass Movement | I98: Landslide | J98: 262 | L98: 262 | M98: 2.734918276 | N98: 716.5485884 | O98: 0 | P98: 83
A99: 0 | B99: 4 | C99: 1955 | D99: 00/04/1955 | E99: Asia | F99: Indonesia | H99: Mass Movement | I99: Landslide | J99: 405 | L99: 405 | M99: 2.692017063 | N99: 1090.26691 | O99: 0 | P99: 204817
A100: 0 | B100: 6 | C100: 1955 | D100: 00/06/1955 | E100: Asia | F100: Thailand | H100: Earthquake | I100: Tsunami | J100: 500 | L100: 500 | M100: 2.83164897 | N100: 1415.824485 | O100: 0 | P100: 700055
A101: 28 | B101: 9 | C101: 1955 | D101: 28/09/1955 | E101: Asia | F101: India | G101: Punjab | H101: Storm | I101: Tropical cyclone | J101: 1500 | K101: 375000 | L101: 376500 | M101: 2.901807712 | N101: 1092530.603 | O101: 0 | P101: 1010100
A102: 28 | B102: 11 | C102: 1955 | D102: 28/11/1955 | E102: Asia | F102: India | G102: Tanjore | H102: Storm | I102: Tropical cyclone | J102: 500 | L102: 500 | M102: 2.901807712 | N102: 1450.903856 | O102: 0 | P102: 1010100
A103: 0 | B103: 12 | C103: 1955 | D103: 00/12/1955 | E103: Asia | F103: India | H103: Storm | J103: 120 | L103: 120 | M103: 2.901807712 | N103: 348.2169254 | O103: 0 | P103: 1010100
A104: 0 | B104: 4 | C104: 1956 | D104: 00/04/1956 | E104: Southern Africa | F104: Mozambique | H104: Storm | I104: Tropical cyclone | J104: 107 | L104: 107 | M104: 3.252875258 | N104: 348.0576526 | O104: 0 | P104: 549405
A105: 29 | B105: 5 | C105: 1956 | D105: 29/05/1956 | E105: Asia | F105: India | G105: Parganas, Midnapore (West ... | H105: Storm | I105: Tropical cyclone | K105: 1000000 | L105: 1000000 | M105: 2.901807712 | N105: 2901807.712 | O105: 0 | P105: 1010100
A106: 10 | B106: 6 | C106: 1956 | D106: 1956-10-06 | E106: Asia | F106: Afghanistan | G106: Kabul | H106: Earthquake | I106: Earthquake (ground shaking) | J106: 100 | K106: 2000 | L106: 2100 | M106: 3.275334608 | N106: 6878.202677 | O106: 0 | P106: 121635
A107: 21 | B107: 7 | C107: 1956 | D107: 21/07/1956 | E107: Asia | F107: India | G107: Anjar, Kutch area | H107: Earthquake | I107: Earthquake (ground shaking) | J107: 113 | K107: 219 | L107: 332 | M107: 2.901807712 | N107: 963.4001603 | O107: 0 | P107: 18701103
A108: 0 | B108: 8 | C108: 1956 | D108: 00/08/1956 | E108: Asia | F108: Pakistan | H108: Flood | J108: 270 | L108: 270 | M108: 3.989670072 | N108: 1077.21092 | O108: 0 | P108: 4800474
A109: 1 | B109: 8 | C109: 1956 | D109: 1956-01-08 | E109: Asia | F109: India | G109: Gujarat, Saurashtra, Kutc ... | H109: Flood | K109: 2000 | L109: 2000 | M109: 2.901807712 | N109: 5803.615423 | O109: 0 | P109: 5500325
A110: 9 | B110: 9 | C110: 1956 | D110: 1956-09-09 | E110: Asia | F110: India | G110: Bihar, Uttar Pradesh | H110: Flood | J110: 100 | K110: 75000 | L110: 75100 | M110: 2.901807712 | N110: 217925.7591 | O110: 0 | P110: 5500325
A111: 0 | B111: 12 | C111: 1956 | D111: 00/12/1956 | E111: Asia | F111: Indonesia | H111: Storm | I111: Tropical cyclone | J111: 300 | L111: 300 | M111: 2.692017063 | N111: 807.6051188 | O111: 0 | P111: 556020
A112: 9 | B112: 9 | C112: 1957 | D112: 1957-09-09 | E112: Asia | F112: India | G112: Madya Pradesh, Uttar Prad ... | H112: Flood | J112: 42 | K112: 10000 | L112: 10042 | M112: 2.901807712 | N112: 29139.95304 | O112: 0 | P112: 5500325
A113: 0 | B113: 12 | C113: 1957 | D113: 00/12/1957 | E113: Latin America and Carribean | F113: Brazil | H113: Flood | J113: 112 | L113: 112 | M113: 3.255463464 | N113: 364.6119079 | O113: 0 | P113: 3021023
A114: 0 | B114: 12 | C114: 1957 | D114: 00/12/1957 | E114: Asia | F114: Papua New Guinea | G114: Manam | H114: Volcano | I114: Volcanic eruption | K114: 3200 | L114: 3200 | M114: 3.925566343 | N114: 12561.8123 | O114: 0 | P114: 0
A115: 25 | B115: 12 | C115: 1957 | D115: 25/12/1957 | E115: Asia | F115: Sri Lanka | G115: Spate | H115: Storm | I115: Tropical cyclone | J115: 200 | K115: 250000 | L115: 250200 | M115: 2.47458017 | N115: 619139.9586 | O115: 0 | P115: 501325
A116: 16 | B116: 10 | C116: 1958 | D116: 16/10/1958 | E116: Asia | F116: India | G116: Vishakhapatam | H116: Storm | K116: 20000 | L116: 20000 | M116: 2.633871659 | N116: 52677.43319 | O116: 0 | P116: 1010100
A117: 20 | B117: 10 | C117: 1958 | D117: 20/10/1958 | E117: Asia | F117: Bangladesh | H117: Storm | I117: Tropical cyclone | J117: 500 | L117: 500 | M117: 2.895352884 | N117: 1447.676442 | O117: 0 | P117: 1590000
A118: 15 | B118: 11 | C118: 1958 | D118: 15/11/1958 | E118: Asia | F118: India | G118: Madras city | H118: Flood | J118: 5 | K118: 5000 | L118: 5005 | M118: 2.633871659 | N118: 13182.52766 | O118: 0 | P118: 5500325
A119: 0 | B119: 6 | C119: 1959 | D119: 00/06/1959 | E119: Latin America and Carribean | F119: Colombia | H119: Flood | J119: 184 | L119: 184 | M119: 2.770952172 | N119: 509.8551996 | O119: 0 | P119: 1207119
A120: 0 | B120: 7 | C120: 1959 | D120: 00/07/1959 | E120: Asia | F120: Pakistan | H120: Flood | J120: 100 | L120: 100 | M120: 3.518308294 | N120: 351.8308294 | O120: 0 | P120: 4800474
A121: 0 | B121: 7 | C121: 1959 | D121: 00/07/1959 | E121: Asia | F121: India | H121: Flood | J121: 104 | L121: 104 | M121: 2.633871659 | N121: 273.9226526 | O121: 0 | P121: 5500325
A122: 4 | B122: 7 | C122: 1959 | D122: 1959-04-07 | E122: Asia | F122: India | G122: Kutch | H122: Flood | J122: 17 | K122: 13000 | L122: 13017 | M122: 2.633871659 | N122: 34285.10739 | O122: 0 | P122: 5500325
A123: 0 | B123: 9 | C123: 1959 | D123: 00/09/1959 | E123: Latin America and Carribean | F123: Brazil | H123: Flood | J123: 100 | L123: 100 | M123: 2.804979427 | N123: 280.4979427 | O123: 0 | P123: 3021023
A124: 0 | B124: 9 | C124: 1959 | D124: 00/09/1959 | E124: Asia | F124: India | H124: Flood | J124: 500 | L124: 500 | M124: 2.633871659 | N124: 1316.93583 | O124: 0 | P124: 5500325
A125: 0 | B125: 0 | C125: 1960 | D125: 00/00/1960 | E125: Asia | F125: Bangladesh | H125: Flood | J125: 10000 | L125: 10000 | M125: 2.895352884 | N125: 28953.52884 | O125: 0 | P125: 4100012
A126: 29 | B126: 2 | C126: 1960 | D126: 29/02/1960 | E126: West Africa | F126: Morocco | G126: Agadir | H126: Earthquake | I126: Earthquake (ground shaking) | J126: 12000 | K126: 25000 | L126: 37000 | M126: 2.545842389 | N126: 94196.1684 | O126: 0 | P126: 31
A127: 17 | B127: 3 | C127: 1960 | D127: 17/03/1960 | E127: Asia | F127: Papua New Guinea | G127: Manam | H127: Volcano | I127: Volcanic eruption | K127: 2000 | L127: 2000 | M127: 3.530267753 | N127: 7060.535506 | O127: 0 | P127: 0
A128: 0 | B128: 9 | C128: 1960 | D128: 00/09/1960 | E128: Asia | F128: India | H128: Flood | J128: 155 | L128: 155 | M128: 2.633871659 | N128: 408.2501072 | O128: 0 | P128: 5500325
A129: 0 | B129: 10 | C129: 1960 | D129: 00/10/1960 | E129: Latin America and Carribean | F129: Nicaragua | H129: Flood | J129: 325 | L129: 325 | M129: 4.016075017 | N129: 1305.22438 | O129: 0 | P129: 871560
A130: 9 | B130: 10 | C130: 1960 | D130: 1960-09-10 | E130: Asia | F130: Bangladesh | G130: Noakhali, Off-Shore Islan ... | H130: Storm | I130: Tropical cyclone | J130: 3000 | L130: 3000 | M130: 2.895352884 | N130: 8686.058652 | O130: 0 | P130: 1590000
A131: 30 | B131: 10 | C131: 1960 | D131: 30/10/1960 | E131: Asia | F131: Bangladesh | G131: Chittagong area, Off-Shor ... | H131: Storm | I131: Tropical cyclone | J131: 5149 | K131: 200000 | L131: 205149 | M131: 2.895352884 | N131: 593978.7488 | O131: 0 | P131: 1590000
A132: 10 | B132: 11 | C132: 1960 | D132: 1960-10-11 | E132: Asia | F132: India | G132: Maduri, Madras City | H132: Flood | J132: 5 | K132: 160000 | L132: 160005 | M132: 2.633871659 | N132: 421432.6349 | O132: 0 | P132: 5500325
A133: 0 | B133: 3 | C133: 1961 | D133: 00/03/1961 | E133: Asia | F133: Bangladesh | H133: Storm | J133: 266 | L133: 266 | M133: 2.895352884 | N133: 770.1638672 | O133: 0 | P133: 1590000
A134: 9 | B134: 5 | C134: 1961 | D134: 1961-09-05 | E134: Asia | F134: Bangladesh | G134: Megna Eestuary | H134: Storm | I134: Tropical cyclone | J134: 11000 | L134: 11000 | M134: 2.895352884 | N134: 31848.88172 | O134: 0 | P134: 1590000
A135: 0 | B135: 7 | C135: 1961 | D135: 00/07/1961 | E135: Asia | F135: India | G135: North | H135: Flood | J135: 2000 | L135: 2000 | M135: 2.633871659 | N135: 5267.743319 | O135: 0 | P135: 5500325
A136: 6 | B136: 9 | C136: 1961 | D136: 1961-06-09 | E136: Asia | F136: India | G136: Central, West India | H136: Flood | K136: 2000 | L136: 2000 | M136: 2.633871659 | N136: 5267.743319 | O136: 0 | P136: 5500325
A137: 0 | B137: 10 | C137: 1961 | D137: 00/10/1961 | E137: Latin America and Carribean | F137: Honduras | H137: Storm | I137: Tropical cyclone | J137: 275 | L137: 275 | M137: 4.09272541 | N137: 1125.499488 | O137: 0 | P137: 608000
A138: 0 | B138: 10 | C138: 1961 | D138: 00/10/1961 | E138: Asia | F138: India | H138: Flood | J138: 1000 | L138: 1000 | M138: 2.633871659 | N138: 2633.871659 | O138: 0 | P138: 5500325
A139: 0 | B139: 11 | C139: 1961 | D139: 00/11/1961 | E139: East and Central Africa | F139: Somalia | H139: Flood | J139: 200 | L139: 200 | M139: 3.420838972 | N139: 684.1677943 | O139: 0 | P139: 299052
A140: 10 | B140: 1 | C140: 1962 | D140: 1962-10-01 | E140: Latin America and Carribean | F140: Peru | G140: Ranrahirca area | H140: Mass Movement | I140: Landslide | J140: 300 | K140: 30000 | L140: 30300 | M140: 3.011479207 | N140: 91247.81996 | O140: 0 | P140: 330250
A141: 0 | B141: 7 | C141: 1962 | D141: 00/07/1962 | E141: Latin America and Carribean | F141: Colombia | H141: Earthquake | I141: Earthquake (ground shaking) | J141: 112 | L141: 112 | M141: 2.770952172 | N141: 310.3466433 | O141: 0 | P141: 86069
A142: 0 | B142: 8 | C142: 1962 | D142: 00/08/1962 | E142: Asia | F142: India | H142: Flood | J142: 100 | L142: 100 | M142: 2.633871659 | N142: 263.3871659 | O142: 0 | P142: 5500325
A143: 0 | B143: 8 | C143: 1962 | D143: 00/08/1962 | E143: Latin America and Carribean | F143: Colombia | H143: Flood | J143: 135 | L143: 135 | M143: 2.770952172 | N143: 374.0785432 | O143: 0 | P143: 1207119
A144: 16 | B144: 9 | C144: 1962 | D144: 16/09/1962 | E144: Asia | F144: India | G144: Punjab, Delhi, M.P. | H144: Storm | K144: 40000 | L144: 40000 | M144: 2.633871659 | N144: 105354.8664 | O144: 0 | P144: 1010100
A145: 27 | B145: 10 | C145: 1962 | D145: 27/10/1962 | E145: Asia | F145: Thailand | H145: Storm | I145: Tropical cyclone | J145: 769 | L145: 769 | M145: 2.413586305 | N145: 1856.047868 | O145: 0 | P145: 450213
A146: 3 | B146: 1 | C146: 1963 | D146: 1963-03-01 | E146: Asia | F146: Indonesia | G146: Bali | H146: Volcano | I146: Volcanic eruption | J146: 1584 | K146: 78000 | L146: 79584 | M146: 2.193762753 | N146: 174588.415 | O146: 0 | P146: 12865
A147: 0 | B147: 4 | C147: 1963 | D147: 00/04/1963 | E147: Asia | F147: Afghanistan | H147: Flood | J147: 107 | L147: 107 | M147: 2.647845063 | N147: 283.3194217 | O147: 0 | P147: 300013
A148: 0 | B148: 4 | C148: 1963 | D148: 00/04/1963 | E148: Asia | F148: India | H148: Storm | I148: Tropical cyclone | J148: 112 | L148: 112 | M148: 2.370087522 | N148: 265.4498024 | O148: 0 | P148: 1010100
A149: 0 | B149: 5 | C149: 1963 | D149: 00/05/1963 | E149: Asia | F149: Indonesia | H149: Volcano | I149: Volcanic eruption | J149: 106 | L149: 106 | M149: 2.193762753 | N149: 232.5388519 | O149: 0 | P149: 12865
A150: 25 | B150: 5 | C150: 1963 | D150: 25/05/1963 | E150: Asia | F150: Myanmar | G150: Akyab | H150: Storm | I150: Tropical cyclone | K150: 200 | L150: 200 | M150: 1.945342263 | N150: 389.0684525 | O150: 0 | P150: 359999
A151: 28 | B151: 5 | C151: 1963 | D151: 28/05/1963 | E151: Asia | F151: Bangladesh | G151: Chittagong, Noakhali | H151: Storm | I151: Tropical cyclone | J151: 22000 | K151: 1000000 | L151: 1022000 | M151: 2.622022427 | N151: 2679706.921 | O151: 0 | P151: 1590000
A152: 0 | B152: 7 | C152: 1963 | D152: 00/07/1963 | E152: Asia | F152: India | H152: Flood | J152: 200 | L152: 200 | M152: 2.370087522 | N152: 474.0175043 | O152: 0 | P152: 5500325
A153: 10 | B153: 8 | C153: 1963 | D153: 1963-10-08 | E153: Asia | F153: Nepal | G153: Trisuli | H153: Mass Movement | I153: Landslide | J153: 150 | L153: 150 | M153: 2.665439146 | N153: 399.8158718 | O153: 0 | P153: 150
A154: 8 | B154: 9 | C154: 1963 | D154: 1963-08-09 | E154: Asia | F154: India | G154: Orissa, Uttar Pradesh, Pu ... | H154: Storm | J154: 200 | K154: 5000000 | L154: 5000200 | M154: 2.370087522 | N154: 11850911.63 | O154: 0 | P154: 1010100
A155: 4 | B155: 10 | C155: 1963 | D155: 1963-04-10 | E155: Latin America and Carribean | F155: Cuba | G155: All country | H155: Storm | I155: Tropical cyclone | J155: 1750 | L155: 1750 | M155: 1.469526248 | N155: 2571.670935 | O155: 0 | P155: 498895
A156: 4 | B156: 10 | C156: 1963 | D156: 1963-08-10 | E156: Latin America and Carribean | F156: Haiti | G156: South West End Hispaniola ... | H156: Storm | I156: Tropical cyclone | J156: 5000 | L156: 5000 | M156: 2.247923791 | N156: 11239.61895 | O156: 0 | P156: 1165220
A157: 14 | B157: 11 | C157: 1963 | D157: 15/11/1963 | E157: Latin America and Carribean | F157: Haiti | G157: Grand Riviare du Nord | H157: Flood | J157: 500 | L157: 500 | M157: 2.247923791 | N157: 1123.961895 | O157: 0 | P157: 1588122
A158: 0 | B158: 12 | C158: 1963 | D158: 00/12/1963 | E158: West Africa | F158: Morocco | G158: Tanger, Gharb area | H158: Flood | J158: 100 | L158: 100 | M158: 2.248471492 | N158: 224.8471492 | O158: 0 | P158: 266455
A159: 0 | B159: 1 | C159: 1964 | D159: 00/01/1964 | E159: Latin America and Carribean | F159: Brazil | G159: Bahia state | H159: Flood | J159: 100 | K159: 100000 | L159: 100100 | M159: 2.420215903 | N159: 242263.6119 | O159: 0 | P159: 3021023
A160: 0 | B160: 4 | C160: 1964 | D160: 00/04/1964 | E160: Latin America and Carribean | F160: Brazil | G160: Northeastern states | H160: Flood | K160: 15000 | L160: 15000 | M160: 2.420215903 | N160: 36303.23854 | O160: 0 | P160: 3021023
A161: 12 | B161: 4 | C161: 1964 | D161: 1964-12-04 | E161: Asia | F161: Bangladesh | G161: Jessore district | H161: Storm | I161: Tropical cyclone | J161: 300 | K161: 800 | L161: 1100 | M161: 2.622022427 | N161: 2884.22467 | O161: 0 | P161: 1590000
A162: 0 | B162: 5 | C162: 1964 | D162: 00/05/1964 | E162: East and Central Africa | F162: Tanzania Uni Rep | G162: Pangani river basin | H162: Flood | I162: General flood | K162: 13900 | L162: 13900 | M162: 3.529317607 | N162: 49057.51474 | O162: 0 | P162: 201597
A163: 0 | B163: 5 | C163: 1964 | D163: 00/05/1964 | E163: East and Central Africa | F163: Kenya | G163: Nyanza, Western Regions | H163: Flood | K163: 15000 | L163: 15000 | M163: 4.193842287 | N163: 62907.63431 | O163: 0 | P163: 900086
A164: 7 | B164: 5 | C164: 1964 | D164: 1964-07-05 | E164: East and Central Africa | F164: Tanzania Uni Rep | G164: Northern | H164: Earthquake | I164: Earthquake (ground shaking) | J164: 4 | K164: 500 | L164: 504 | M164: 3.529317607 | N164: 1778.776074 | O164: 0 | P164: 6500
A165: 12 | B165: 6 | C165: 1964 | D165: 1964-12-06 | E165: Asia | F165: Pakistan | G165: Coast, Low Indus valley | H165: Storm | I165: Tropical cyclone | J165: 450 | K165: 400000 | L165: 400450 | M165: 3.083346378 | N165: 1234726.057 | O165: 0 | P165: 536171
A166: 0 | B166: 7 | C166: 1964 | D166: 00/07/1964 | E166: Asia | F166: India | G166: Assam, Bihar, Punjab | H166: Flood | J166: 145 | K166: 752210 | L166: 752355 | M166: 2.370087522 | N166: 1783147.197 | O166: 0 | P166: 5500325
A167: 0 | B167: 7 | C167: 1964 | D167: 00/07/1964 | E167: Asia | F167: Bangladesh | G167: Rangpur, Comilla | H167: Flood | K167: 1000000 | L167: 1000000 | M167: 2.622022427 | N167: 2622022.427 | O167: 0 | P167: 4100012
A168: 5 | B168: 7 | C168: 1964 | D168: 1964-05-07 | E168: Latin America and Carribean | F168: Brazil | G168: Paraiba, Rio Grande Do No ... | H168: Flood | K168: 5000 | L168: 5000 | M168: 2.420215903 | N168: 12101.07951 | O168: 0 | P168: 3021023
A169: 24 | B169: 8 | C169: 1964 | D169: 24/08/1964 | E169: Latin America and Carribean | F169: Haiti | G169: Les Cayes area | H169: Storm | I169: Tropical cyclone | J169: 100 | K169: 80000 | L169: 80100 | M169: 2.247923791 | N169: 180058.6957 | O169: 0 | P169: 1165220
A170: 0 | B170: 9 | C170: 1964 | D170: 00/11/1964 | E170: Asia | F170: Viet Nam | G170: China sea coast | H170: Storm | I170: Tropical cyclone | J170: 7000 | K170: 700000 | L170: 707000 | M170: 2.404074293 | N170: 1699680.525 | O170: 0 | P170: 1084809
A171: 0 | B171: 10 | C171: 1964 | D171: 00/10/1964 | E171: Asia | F171: India | G171: Andhra Pradesh | H171: Flood | K171: 18400 | L171: 18400 | M171: 2.370087522 | N171: 43609.6104 | O171: 0 | P171: 5500325
A172: 0 | B172: 10 | C172: 1964 | D172: 00/10/1964 | E172: Asia | F172: Pakistan | G172: Lahore district | H172: Flood | K172: 74427 | L172: 74427 | M172: 3.083346378 | N172: 229484.2209 | O172: 0 | P172: 4800474
A173: 0 | B173: 12 | C173: 1964 | D173: 00/12/1964 | E173: Asia | F173: Viet Nam | H173: Flood | J173: 400 | L173: 400 | M173: 2.404074293 | N173: 961.6297171 | O173: 0 | P173: 4079074
A174: 17 | B174: 12 | C174: 1964 | D174: 17/12/1964 | E174: Asia | F174: India | G174: Rameswaram | H174: Storm | I174: Tropical cyclone | J174: 500 | L174: 500 | M174: 2.370087522 | N174: 1185.043761 | O174: 0 | P174: 1010100
A175: 22 | B175: 12 | C175: 1964 | D175: 22/12/1964 | E175: Asia | F175: Sri Lanka | G175: Trincomalee, East coast | H175: Storm | I175: Tropical cyclone | J175: 206 | K175: 380000 | L175: 380206 | M175: 1.910487523 | N175: 726378.8193 | O175: 0 | P175: 501325
A176: 13 | B176: 1 | C176: 1965 | D176: 13/01/1965 | E176: Middle East and Europe | F176: Jordan | G176: Amman to Ma-An | H176: Flood | J176: 8 | K176: 500 | L176: 508 | M176: 6.03864279 | N176: 3067.630537 | O176: 0 | P176: 18008
A177: 0 | B177: 4 | C177: 1965 | D177: 00/04/1965 | E177: Latin America and Carribean | F177: Ecuador | G177: Daule river Valley | H177: Flood | K177: 50000 | L177: 50000 | M177: 2.889996092 | N177: 144499.8046 | O177: 0 | P177: 700307
A178: 3 | B178: 5 | C178: 1965 | D178: 1965-03-05 | E178: Latin America and Carribean | F178: El Salvador | G178: San Salvador | H178: Earthquake | I178: Earthquake (ground shaking) | J178: 125 | K178: 139720 | L178: 139845 | M178: 2.420145792 | N178: 338445.2883 | O178: 0 | P178: 402
A179: 11 | B179: 5 | C179: 1965 | D179: 1965-11-05 | E179: Asia | F179: Bangladesh | G179: Barisal district | H179: Storm | I179: Tropical cyclone | J179: 36000 | K179: 15600000 | L179: 15636000 | M179: 2.622022427 | N179: 40997942.67 | O179: 1 | P179: 1590000
A180: 0 | B180: 6 | C180: 1965 | D180: 00/06/1965 | E180: Asia | F180: Bangladesh | H180: Storm | I180: Tropical cyclone | J180: 12047 | L180: 12047 | M180: 2.622022427 | N180: 31587.50418 | O180: 0 | P180: 1590000
A181: 0 | B181: 6 | C181: 1965 | D181: 00/06/1965 | E181: Latin America and Carribean | F181: Brazil | G181: Pernambuco, Recife | H181: Flood | J181: 16 | K181: 30000 | L181: 30016 | M181: 2.420215903 | N181: 72645.20053 | O181: 0 | P181: 3021023
A182: 16 | B182: 8 | C182: 1965 | D182: 16/08/1965 | E182: Latin America and Carribean | F182: Brazil | G182: South | H182: Flood | J182: 6 | K182: 240000 | L182: 240006 | M182: 2.420215903 | N182: 580866.3379 | O182: 0 | P182: 3021023
A183: 23 | B183: 10 | C183: 1965 | D183: 23/10/1965 | E183: Asia | F183: Myanmar | G183: South, Central | H183: Storm | I183: Tropical cyclone | J183: 100 | K183: 500000 | L183: 500100 | M183: 1.945342263 | N183: 972865.6655 | O183: 0 | P183: 359999
A184: 15 | B184: 12 | C184: 1965 | D184: 15/12/1965 | E184: Asia | F184: Pakistan | G184: Karachi | H184: Storm | I184: Tropical cyclone | J184: 10000 | L184: 10000 | M184: 3.083346378 | N184: 30833.46378 | O184: 0 | P184: 536171
A185: 15 | B185: 12 | C185: 1965 | D185: 15/12/1965 | E185: Asia | F185: Bangladesh | G185: Chittagong to Teknaf | H185: Storm | I185: Tropical cyclone | J185: 874 | K185: 60000 | L185: 60874 | M185: 2.622022427 | N185: 159612.9932 | O185: 0 | P185: 1590000
A186: 11 | B186: 1 | C186: 1966 | D186: 1966-11-01 | E186: Latin America and Carribean | F186: Brazil | G186: Rio, Guanabara | H186: Flood | J186: 373 | K186: 53581 | L186: 53954 | M186: 2.420215903 | N186: 130580.3288 | O186: 0 | P186: 3021023
A187: 11 | B187: 1 | C187: 1966 | D187: 1966-11-01 | E187: Latin America and Carribean | F187: Brazil | G187: Rio de Janeiro | H187: Mass Movement | I187: Landslide | J187: 350 | K187: 4000000 | L187: 4000350 | M187: 2.420215903 | N187: 9681710.686 | O187: 1 | P187: 100100
A188: 11 | B188: 3 | C188: 1966 | D188: 1966-11-03 | E188: Middle East and Europe | F188: Jordan | G188: Maian | H188: Flood | I188: Flash flood | J188: 259 | K188: 5792 | L188: 6051 | M188: 6.03864279 | N188: 36539.82752 | O188: 0 | P188: 18008
A189: 14 | B189: 3 | C189: 1966 | D189: 14/03/1966 | E189: Asia | F189: Indonesia | G189: Central, East Java | H189: Flood | I189: General flood | J189: 176 | K189: 524100 | L189: 524276 | M189: 2.193762753 | N189: 1150137.161 | O189: 0 | P189: 3183701
A190: 20 | B190: 3 | C190: 1966 | D190: 20/03/1966 | E190: East and Central Africa | F190: Uganda | G190: W. Bwamba county | H190: Earthquake | I190: Earthquake (ground shaking) | J190: 104 | K190: 5510 | L190: 5614 | M190: 3.981285016 | N190: 22350.93408 | O190: 0 | P190: 4000
A191: 25 | B191: 4 | C191: 1966 | D191: 25/04/1966 | E191: Asia | F191: Indonesia | G191: Margomlujo (East Java) | H191: Volcano | I191: Volcanic eruption | J191: 1000 | K191: 5060 | L191: 6060 | M191: 2.193762753 | N191: 13294.20229 | O191: 0 | P191: 12865
A192: 21 | B192: 5 | C192: 1966 | D192: 21/05/1966 | E192: Latin America and Carribean | F192: Brazil | G192: Salvador, Recife | H192: Flood | J192: 147 | K192: 154557 | L192: 154704 | M192: 2.420215903 | N192: 374417.081 | O192: 0 | P192: 3021023
A193: 0 | B193: 6 | C193: 1966 | D193: 00/06/1966 | E193: Asia | F193: Bangladesh | G193: Sylhet | H193: Flood | J193: 39 | K193: 500000 | L193: 500039 | M193: 2.622022427 | N193: 1311113.472 | O193: 0 | P193: 4100012
A194: 0 | B194: 6 | C194: 1966 | D194: 00/06/1966 | E194: Asia | F194: India | G194: Manipur, Assam | H194: Flood | J194: 47 | K194: 900000 | L194: 900047 | M194: 2.370087522 | N194: 2133190.163 | O194: 0 | P194: 5500325
A195: 27 | B195: 6 | C195: 1966 | D195: 27/06/1966 | E195: Asia | F195: Nepal | G195: Nepal-India border | H195: Earthquake | I195: Earthquake (ground shaking) | J195: 80 | K195: 20100 | L195: 20180 | M195: 2.665439146 | N195: 53788.56196 | O195: 0 | P195: 80147
A196: 12 | B196: 8 | C196: 1966 | D196: 1966-12-08 | E196: Asia | F196: Indonesia | G196: Sangi Talaud | H196: Volcano | I196: Volcanic eruption | J196: 88 | K196: 42000 | L196: 42088 | M196: 2.193762753 | N196: 92331.08677 | O196: 0 | P196: 12865
A197: 25 | B197: 8 | C197: 1966 | D197: 25/08/1966 | E197: Asia | F197: Lao P Dem Rep | H197: Flood | I197: General flood | J197: 300 | K197: 72000 | L197: 72300 | M197: 1 | N197: 72300 | O197: 0 | P197: 459031
A198: 0 | B198: 9 | C198: 1966 | D198: 00/09/1966 | E198: Asia | F198: Thailand | G198: Chiengrai to Ubon | H198: Flood | I198: General flood | J198: 6 | K198: 205200 | L198: 205206 | M198: 2.07114341 | N198: 425011.0545 | O198: 0 | P198: 5000091
A199: 0 | B199: 9 | C199: 1966 | D199: 00/09/1966 | E199: Asia | F199: Sri Lanka | G199: Southwest | H199: Flood | J199: 23 | K199: 352347 | L199: 352370 | M199: 1.910487523 | N199: 673198.4886 | O199: 0 | P199: 1250003
A200: 20 | B200: 9 | C200: 1966 | D200: 20/09/1966 | E200: Asia | F200: Viet Nam | G200: Near Cambodia border | H200: Flood | I200: General flood | J200: 31 | K200: 195902 | L200: 195933 | M200: 2.404074293 | N200: 471037.4884 | O200: 0 | P200: 4079074
... 2394 more rows

Sheet StatTrucOut
A1: Location | B1: Disaster | C1: Number of Observations (N) | D1: Sqrt (N) | E1: Mean | F1: Variance | G1: Standard Deviation | H1: p- value | I1: Quantile.1 | J1: Quantile.2 | K1: Quantile.3 | L1: Quantile.4 | M1: Quantile.5 | N1: Quantile.6 | O1: Quantile.7 | P1: Quantile.8 | Q1: Quantile.9 | R1: Quantile.99
A2: Latin America and Carribean | B2: Flood | C2: 338 | D2: 18.38477631 | E2: 156642.9379 | F2: 0 | G2: 0 | J2: 4287 | L2: 17973 | M2: 34814 | N2: 60891 | P2: 154808 | R2: 901538
A8: Year | B8: Year Count | C8: Num Aff | D8: Month | E8: Month Count
A9: 1900 | D9: January | E9: 42
A10: 1901 | D10: February | E10: 37
A11: 1902 | D11: March | E11: 29
A12: 1903 | D12: April | E12: 29
A13: 1904 | D13: May | E13: 26
A14: 1905 | D14: June | E14: 30
A15: 1906 | D15: July | E15: 16
A16: 1907 | D16: August | E16: 11
A17: 1908 | D17: September | E17: 28
A18: 1909 | D18: October | E18: 37
A19: 1910 | D19: November | E19: 22
A20: 1911 | D20: December | E20: 27
A21: 1912
A22: 1913
A23: 1914
A24: 1915
A25: 1916
A26: 1917
A27: 1918
A28: 1919
A29: 1920
A30: 1921
A31: 1922
A32: 1923
A33: 1924
A34: 1925
A35: 1926
A36: 1927
A37: 1928
A38: 1929
A39: 1930
A40: 1931
A41: 1932
A42: 1933
A43: 1934
A44: 1935
A45: 1936
A46: 1937
A47: 1938
A48: 1939
A49: 1940
A50: 1941
A51: 1942
A52: 1943
A53: 1944
A54: 1945
A55: 1946
A56: 1947
A57: 1948 | B57: 753
A58: 1949 | B58: 182553
A59: 1950
A60: 1951
A61: 1952
A62: 1953
A63: 1954
A64: 1955
A65: 1956
A66: 1957 | B66: 365
A67: 1958
A68: 1959 | B68: 395
A69: 1960 | B69: 1305
A70: 1961
A71: 1962 | B71: 374
A72: 1963 | B72: 1124
A73: 1964 | B73: 96889.33333
A74: 1965 | B74: 266003.6667
A75: 1966 | B75: 252498.5
A76: 1967 | B76: 103993
A77: 1968 | B77: 1087
A78: 1969 | B78: 112782
A79: 1970 | B79: 1855722
A80: 1971 | B80: 11267.33333
A81: 1972
A82: 1973 | B82: 37032
A83: 1974 | B83: 300878.5
A84: 1975 | B84: 1529560
A85: 1976 | B85: 3906
A86: 1977 | B86: 53094
A87: 1978 | B87: 1568
A88: 1979 | B88: 876513.3333
A89: 1980 | B89: 92181.6
A90: 1981 | B90: 17353.8
A91: 1982 | B91: 329862.5
A92: 1983 | B92: 1082042.2
A93: 1984 | B93: 83508.42857
A94: 1985 | B94: 227581
A95: 1986 | B95: 68063.33333
A96: 1987 | B96: 6829.5
A97: 1988 | B97: 336388.8462
A98: 1989 | B98: 178811.875
A99: 1990 | B99: 7846.846154
A100: 1991 | B100: 22642
A101: 1992 | B101: 58564.6
A102: 1993 | B102: 105482
A103: 1994 | B103: 17371.44444
A104: 1995 | B104: 25623
A105: 1996 | B105: 33366.25
A106: 1997 | B106: 30246
A107: 1998 | B107: 13547.75
A108: 1999 | B108: 29886.54545
A109: 2000 | B109: 22998.05882
A110: 2001 | B110: 21575.07692
A111: 2002 | B111: 41752.31579
A112: 2003 | B112: 70613.57895
A113: 2004 | B113: 140494.3333
A114: 2005 | B114: 68458.41667
A115: 2006 | B115: 155646.8
A116: 2007 | B116: 191378.9524
A117: 2008 | B117: 292294.8125
A118: 2009 | B118: 233074
A119: 2010
A120: 2011
A121: 2012
A122: 2013
A123: 2014
A124: 2015

Sheet StatWithOut
A1: Location | B1: Disaster | C1: Number of Observations (N) | D1: Sqrt (N) | E1: Mean | F1: Variance | G1: Standard Deviation | H1: p- value | I1: Quantile.1 | J1: Quantile.2 | K1: Quantile.3 | L1: Quantile.4 | M1: Quantile.5 | N1: Quantile.6 | O1: Quantile.7 | P1: Quantile.8 | Q1: Quantile.9 | R1: Quantile.99 | S1: Max Non-Out Val

Sheet ButtonOutputs (hidden)
A1: Box Outputs | B1: Country | C1: Region | D1: Mult Countries
A2: Output1 | B2: 1 | C2: 4 | D2: 1
A3: Output2 | D3: 1
A4: Output3 | D4: 1
A5: Output4 | D5: 1
A6: Output5 | D6: 1
A7: Disaster | B7: 1 | C7: 3 | D7: 1
A9: Outputs Name | B9: Country | C9: Region | D9: Mult Countries
A10: Output1 | B10: =INDEX(EditRegionCountry!$C$2:$C$59,B2) -> 0 | C10: =INDEX(EditRegionCountry!A2:A8,C2) -> Latin America and Carribean | D10: =IF(INDEX(EditRegionCountry!$C$2:$C$65,D2)=0,"",INDEX(EditRegionCountry!$C$2:$C$65,D2)) -> 
A11: Output2 | D11: =IF(INDEX(EditRegionCountry!$C$2:$C$65,D3)=0,"",INDEX(EditRegionCountry!$C$2:$C$65,D3)) -> 
A12: Output3 | D12: =IF(INDEX(EditRegionCountry!$C$2:$C$65,D4)=0,"",INDEX(EditRegionCountry!$C$2:$C$65,D4)) -> 
A13: Output4 | D13: =IF(INDEX(EditRegionCountry!$C$2:$C$65,D5)=0,"",INDEX(EditRegionCountry!$C$2:$C$65,D5)) -> 
A14: Output5 | D14: =IF(INDEX(EditRegionCountry!$C$2:$C$65,D6)=0,"",INDEX(EditRegionCountry!$C$2:$C$65,D6)) -> 
A15: Disaster | B15: =INDEX(EditRegionCountry!$B$2:$B$8,ButtonOutputs!B7) -> 0 | C15: =INDEX(EditRegionCountry!$B$2:$B$8,ButtonOutputs!C7) -> Flood | D15: =INDEX(EditRegionCountry!$B$2:$B$8,ButtonOutputs!D7) -> 0

Sheet GF (hidden)
A1: GROWTH FACTORS | B1: 1915 | C1: 1940 | D1: 1952 | E1: 1957 | F1: 1962 | G1: 1967 | H1: 1972 | I1: 1977 | J1: 1982 | K1: 1987 | L1: 1992 | M1: 1997 | N1: 2002 | O1: 2007 | P1: 2010
A2: Afghanistan | B2: 5.579796328 | C2: 4.576462581 | D2: 3.573128834 | E2: 3.275334608 | F2: 2.962763252 | G2: 2.647845063 | H2: 2.342611214 | I2: 2.060642513 | J2: 1.935721882 | K2: 2.223995723 | L2: 2.1652911 | M2: 1.514667638 | N2: 1.322419509 | O2: 1.140300728 | P2: 1 | Q2: 0.8938580067
A3: Bangladesh | B3: 5.692685498 | C3: 4.577775953 | D3: 3.462866407 | E3: 3.187585706 | F3: 2.895352884 | G3: 2.622022427 | H3: 2.347596204 | I3: 2.075637204 | J3: 1.797491386 | K3: 1.594146479 | L3: 1.418433734 | M3: 1.2733908 | N3: 1.156459201 | O3: 1.067861993 | P3: 1 | Q3: 0.9362934706
A4: India | B4: 5.017356002 | C4: 4.094473394 | D4: 3.171590786 | E4: 2.901807712 | F4: 2.633871659 | G4: 2.370087522 | H4: 2.11794782 | I4: 1.895402174 | J4: 1.71284648 | K4: 1.54435159 | L4: 1.399624654 | M4: 1.274307098 | N4: 1.165763689 | O4: 1.075286006 | P4: 1 | Q4: 0.937214787
A5: Indonesia | B5: 5.683993824 | C5: 4.306047624 | D5: 2.928101424 | E5: 2.692017063 | F5: 2.426137839 | G5: 2.193762753 | H5: 1.986785726 | I5: 1.796144065 | J5: 1.614759382 | K5: 1.46261415 | L5: 1.33667822 | M5: 1.228575474 | N5: 1.136272442 | O5: 1.061477702 | P5: 1 | Q5: 0.9499880747
A6: Myanmar | B6: 4.76813446 | C6: 3.628704956 | D6: 2.489275452 | E6: 2.30456057 | F6: 2.124042209 | G6: 1.945342263 | H6: 1.770926879 | I6: 1.599175869 | J6: 1.467317988 | K6: 1.334699829 | L6: 1.236169508 | M6: 1.161856633 | N6: 1.095031715 | O6: 1.041097948 | P6: 1 | Q6: 0.964855404
A7: Nepal | B7: 6.018455423 | C7: 4.619461304 | D7: 3.220467186 | E7: 3.054330626 | F7: 2.885102143 | G7: 2.665439146 | H7: 2.429062841 | I7: 2.200668896 | J7: 1.974224344 | K7: 1.747254074 | L7: 1.530394333 | M7: 1.323399004 | N7: 1.166572649 | O7: 1.068576069 | P7: 1 | Q7: 0.9176254318
A8: Pakistan | B8: 7.29126079 | C8: 5.892601091 | D8: 4.493941391 | E8: 3.989670072 | F8: 3.518308294 | G8: 3.083346378 | H8: 2.698033665 | I8: 2.372804904 | J8: 2.080252056 | K8: 1.787084547 | L8: 1.535424137 | M8: 1.361930151 | N8: 1.201397407 | O8: 1.08509922 | P8: 1 | Q8: 0.9293585388
A9: Papua New Guinea | B9: 4.428191836 | C9: 4.361758808 | D9: 4.295325779 | E9: 3.925566343 | F9: 3.530267753 | G9: 3.124678001 | H9: 2.739385727 | I9: 2.422124601 | J9: 2.131061138 | K9: 1.878290492 | L9: 1.646755362 | M9: 1.438567362 | N9: 1.260128818 | O9: 1.114889706 | P9: 1 | Q9: 0.9090227818
A10: Sri Lanka | B10: 5.588190184 | C10: 4.222078631 | D10: 2.855967078 | E10: 2.47458017 | F10: 2.170281449 | G10: 1.910487523 | H10: 1.704889452 | I10: 1.561361492 | J10: 1.428931987 | K10: 1.329009143 | L10: 1.23892888 | M10: 1.16442953 | N10: 1.106915003 | O10: 1.049258681 | P10: 1 | Q10: 0.9611758924
A11: Thailand | B11: 9.071721311 | C11: 6.192506699 | D11: 3.313292087 | E11: 2.83164897 | F11: 2.413586305 | G11: 2.07114341 | H11: 1.790326494 | I11: 1.570897994 | J11: 1.412091184 | K11: 1.293385532 | L11: 1.203054514 | M11: 1.12774485 | N11: 1.072709356 | O11: 1.03352477 | P11: 1 | Q11: 0.9735376045
A12: Cambodia | B12: 14.75887479 | C12: 9.286140294 | D12: 3.813405797 | E12: 3.253238151 | F12: 2.770952172 | G12: 2.370749759 | H12: 2.062762483 | I12: 1.832331606 | J12: 1.659907626 | K12: 1.485982251 | L12: 1.333604851 | M12: 1.210035038 | N12: 1.136083269 | O12: 1.065488816 | P12: 1 | Q12: 0.9458245073
A13: East Timor | B13: 6.746330184 | C13: 4.697706376 | D13: 2.649082569 | E13: 2.447033898 | F13: 2.269155206 | G13: 2.088607595 | H13: 1.931438127 | I13: 1.70605613 | J13: 2.073608618 | K13: 1.771472393 | L13: 1.548257373 | M13: 1.327586207 | N13: 1.363636364 | O13: 1.108445298 | P13: 1 | Q13: 0.9080188679
A14: Timor-Leste | B14: 6.746330184 | C14: 4.697706376 | D14: 2.649082569 | E14: 2.447033898 | F14: 2.269155206 | G14: 2.088607595 | H14: 1.931438127 | I14: 1.70605613 | J14: 2.073608618 | K14: 1.771472393 | L14: 1.548257373 | M14: 1.327586207 | N14: 1.363636364 | O14: 1.108445298 | P14: 1 | Q14: 0.9080188679
A15: Lao P Dem Rep | B15: 1 | C15: 1 | D15: 1 | E15: 1 | F15: 1 | G15: 1 | H15: 1 | I15: 1 | J15: 1 | K15: 1 | L15: 1 | M15: 1 | N15: 1 | O15: 1 | P15: 1
A16: Viet Nam | B16: 5.566394843 | C16: 4.550023207 | D16: 3.53365157 | E16: 3.229180186 | F16: 2.829510993 | G16: 2.404074293 | H16: 2.103741457 | I16: 1.863151326 | J16: 1.667523038 | K16: 1.490539664 | L16: 1.331752357 | M16: 1.21397883 | N16: 1.131261209 | O16: 1.060953509 | P16: 1 | Q16: 0.9493582338
A17: Burundi | B17: 10.21236017 | C17: 7.193145806 | D17: 4.173931443 | E17: 3.828804348 | F17: 3.503730018 | G17: 3.110375276 | H17: 2.800397501 | I17: 2.683079434 | J17: 2.294788274 | K17: 2.003860219 | L17: 1.781611272 | M17: 1.599837794 | N17: 1.44555181 | O17: 1.208404803 | P17: 1 | Q17: 0.8521686539
A18: Ethiopia | B18: 9.071815521 | C18: 6.717146918 | D18: 4.362478315 | E18: 4.002410186 | F18: 3.641565642 | G18: 3.291436051 | H18: 2.986630018 | I18: 2.669001698 | J18: 2.442363192 | K18: 2.084282568 | L18: 1.818563134 | M18: 1.584392439 | N18: 1.371666797 | O18: 1.173819685 | P18: 1 | Q18: 0.8533849167
A19: Kenya | B19: 13.22640493 | C19: 9.884481666 | D19: 6.542558405 | E19: 5.693346602 | F19: 4.909525561 | G19: 4.193842287 | H19: 3.560682849 | I19: 2.981240229 | J19: 2.452207458 | K19: 2.026567481 | L19: 1.714781194 | M19: 1.476441528 | N19: 1.312672086 | O19: 1.147084097 | P19: 1 | Q19: 0.8948450383
A20: Rwanda | B20: 11.08668557 | C20: 7.809845451 | D20: 4.53300533 | E20: 4.097850259 | F20: 3.646437995 | G20: 3.386217458 | H20: 2.933404086 | I20: 2.537525821 | J20: 2.150972763 | K20: 1.84666778 | L20: 1.579654236 | M20: 2.020098666 | N20: 1.31650393 | O20: 1.150348559 | P20: 1 | Q20: 0.8731637972
A21: Somalia | B21: 5.843458041 | C21: 4.995560029 | D21: 4.147662018 | E21: 3.783015339 | F21: 3.420838972 | G21: 3.080109656 | H21: 2.757567494 | I21: 2.449612403 | J21: 1.745253711 | K21: 1.565567425 | L21: 1.51105798 | M21: 1.579753164 | N21: 1.369076631 | O21: 1.155393053 | P21: 1 | Q21: 0.8711984147
A22: Tanzania Uni Rep | B22: 10.67347781 | C22: 7.976499458 | D22: 5.279521109 | E22: 4.669824992 | F22: 4.083138402 | G22: 3.529317607 | H22: 3.034185558 | I22: 2.594315085 | J22: 2.244468256 | K22: 1.937875844 | L22: 1.661497581 | M22: 1.408026081 | N22: 1.242673232 | O22: 1.109131344 | P22: 1 | Q22: 0.9082887063
A23: Uganda | B23: 12.22822316 | C23: 9.138287604 | D23: 6.048352046 | E23: 5.287161627 | F23: 4.599146241 | G23: 3.981285016 | H23: 3.427999589 | I23: 3.049579985 | J23: 2.690213451 | K23: 2.320664258 | L23: 1.913324931 | M23: 1.614258096 | N23: 1.394180998 | O23: 1.184403702 | P23: 1 | Q23: 0.8362084074
A24: Bolivia | B24: 5.864976415 | C24: 4.730572083 | D24: 3.596167751 | E24: 3.235849057 | F24: 2.896622015 | G24: 2.581624708 | H24: 2.288771284 | I24: 2.024216524 | J24: 1.828156589 | K24: 1.67598989 | L24: 1.513081838 | M24: 1.348745763 | N24: 1.213788896 | O24: 1.09632977 | P24: 1 | Q24: 0.9209332469
A25: Brazil | B25: 11.18232874 | C25: 7.472636217 | D25: 3.762943697 | E25: 3.255463464 | F25: 2.804979427 | G25: 2.420215903 | H25: 2.101741148 | I25: 1.847032026 | J25: 1.634717932 | K25: 1.463823499 | L25: 1.330310247 | M25: 1.229656851 | N25: 1.140556942 | O25: 1.064076447 | P25: 1 | Q25: 0.947053394
A26: Cuba | B26: 6.922195416 | C26: 4.453059679 | D26: 1.983923941 | E26: 1.798620906 | F26: 1.633271666 | G26: 1.469526248 | H26: 1.343439073 | I26: 1.235414424 | J26: 1.188956801 | K26: 1.140174846 | L26: 1.091695995 | M26: 1.056327658 | N26: 1.033405366 | O26: 1.013332156 | P26: 1 | Q26: 0.9909342083
A27: Colombia | B27: 11.05677839 | C27: 7.435092093 | D27: 3.813405797 | E27: 3.253238151 | F27: 2.770952172 | G27: 2.370749759 | H27: 2.062762483 | I27: 1.832331606 | J27: 1.659907626 | K27: 1.485982251 | L27: 1.333604851 | M27: 1.210035038 | N27: 1.136083269 | O27: 1.065488816 | P27: 1 | Q27: 0.9458245073
A28: Ecuador | B28: 10.565 | C28: 7.477010386 | D28: 4.389020772 | E28: 3.849817803 | F28: 3.349411232 | G28: 2.889996092 | H28: 2.490486614 | I28: 2.152357392 | J28: 1.867550505 | K28: 1.632200397 | L28: 1.433514247 | M28: 1.312888337 | N28: 1.188413948 | O28: 1.082637974 | P28: 1 | Q28: 0.9321275523
A29: El Salvador | B29: 9.535248042 | C29: 6.650098248 | D29: 3.764948454 | E29: 3.288608735 | F29: 2.828814872 | G29: 2.420145792 | H29: 2.02663707 | I29: 1.794153771 | J29: 1.599649584 | K29: 1.566037736 | L29: 1.432156863 | M29: 1.311546059 | N29: 1.192295135 | O29: 1.088200238 | P29: 1 | Q29: 0.9239721695
A30: Guatemala | B30: 10.42307692 | C30: 7.493451564 | D30: 4.563826204 | E30: 3.885861772 | F30: 3.304878049 | G30: 2.85503582 | H30: 2.574088146 | I30: 2.292724196 | J30: 2.037593985 | K30: 1.787363145 | L30: 1.511264778 | M30: 1.351216594 | N30: 1.222372576 | O30: 1.112205532 | P30: 1 | Q30: 0.9082378175
A31: Haiti | B31: 5.899358974 | C31: 4.43547219 | D31: 2.971585405 | E31: 2.734918276 | F31: 2.489315661 | G31: 2.247923791 | H31: 2.026646113 | I31: 1.906567226 | J31: 1.769807692 | K31: 1.621102695 | L31: 1.463348704 | M31: 1.32512599 | N31: 1.20473884 | O31: 1.096247767 | P31: 1 | Q31: 0.9127243876
A32: Honduras | B32: 15.978 | C32: 10.78040461 | D32: 5.582809224 | E32: 4.806859206 | F32: 4.09272541 | G32: 3.430227565 | H32: 2.893516842 | I32: 2.795311407 | J32: 2.348324515 | K32: 1.959529065 | L32: 1.666458073 | M32: 1.439200144 | N32: 1.256329612 | O32: 1.110663145 | P32: 1 | Q32: 0.9133417172
A33: Nicaragua | B33: 12.54393305 | C33: 9.002385471 | D33: 5.460837887 | E33: 4.695379796 | F33: 4.016075017 | G33: 3.426285714 | H33: 2.920603994 | I33: 2.503549061 | J33: 2.136849608 | K33: 1.879034785 | L33: 1.627137042 | M33: 1.367388826 | N33: 1.214994934 | O33: 1.096361309 | P33: 1 | Q33: 0.9200552401
A34: Peru | B34: 7.888947507 | C34: 5.903533101 | D34: 3.918118695 | E34: 3.448685424 | F34: 3.011479207 | G34: 2.608092788 | H34: 2.266883954 | I34: 1.972627135 | J34: 1.729228101 | K34: 1.539059284 | L34: 1.384583333 | M34: 1.249143764 | N34: 1.146433089 | O34: 1.066165199 | P34: 1 | Q34: 0.9454965066
A35: Bosnia-Hercegovenia | B35: 2.323943868 | C35: 2.030116186 | D35: 1.736288505 | E35: 1.554135844 | F35: 1.42654321 | G35: 1.323217864 | H35: 1.248177154 | I35: 1.161306533 | J35: 1.129521017 | K35: 1.081169591 | L35: 1.044755877 | M35: 1.246157994 | N35: 1.145477076 | O35: 1.043340858 | P35: 1 | Q35: 1.000866176
A36: Egypt | B36: 7.81092905 | C36: 5.80356812 | D36: 3.796207189 | E36: 3.373239437 | F36: 2.99742988 | G36: 2.658912936 | H36: 2.396854709 | I36: 2.177685168 | J36: 1.887507623 | K36: 1.607767921 | L36: 1.465605478 | M36: 1.365204852 | N36: 1.235009745 | O36: 1.109285399 | P36: 1 | Q36: 0.909421723
A37: Georgia | B37: 2.66359132 | C37: 1.986090313 | D37: 1.308589306 | E37: 1.202247191 | F37: 1.10947673 | G37: 1.030459127 | H37: 0.9801874734 | I37: 0.9393630053 | J37: 0.9118113357 | K37: 0.8860003851 | L37: 0.8479542941 | M37: 0.9178136844 | N37: 0.963156793 | O37: 0.9837502673 | P37: 1 | Q37: 1.01679558
A38: Jordan | B38: 19.96899242 | C38: 15.69483489 | D38: 11.42067736 | E38: 9.326055313 | F38: 7.546525324 | G38: 6.03864279 | H38: 4.262807718 | I38: 3.553521908 | J38: 2.96208969 | K38: 2.436121673 | L38: 1.961126416 | M38: 1.534243295 | N38: 1.366680887 | O38: 1.221544328 | P38: 1 | Q38: 0.9673863808
A39: Serbia Montenegro | B39: 1.437264867 | C39: 1.335237538 | D39: 1.233210208 | E39: 1.1634722 | F39: 1.103018471 | G39: 1.05546774 | H39: 1.013383002 | I39: 0.9884268604 | J39: 0.9679757512 | K39: 0.9514248705 | L39: 0.9433598767 | M39: 0.9550123521 | N39: 0.9659389795 | O39: 0.9790722474 | P39: 1 | Q39: 1.023408109
A40: Serbia | B40: 1.437264867 | C40: 1.335237538 | D40: 1.233210208 | E40: 1.1634722 | F40: 1.103018471 | G40: 1.05546774 | H40: 1.013383002 | I40: 0.9884268604 | J40: 0.9679757512 | K40: 0.9514248705 | L40: 0.9433598767 | M40: 0.9550123521 | N40: 0.9659389795 | O40: 0.9790722474 | P40: 1 | Q40: 1.023408109
A41: Yemen | B41: 7.475572406 | C41: 6.196965604 | D41: 4.918358803 | E41: 4.462488129 | F41: 4.001192098 | G41: 3.60906298 | H41: 3.310087349 | I41: 2.961305773 | J41: 2.572539144 | K41: 2.229127135 | L41: 1.892316366 | M41: 1.580877405 | N41: 1.349744356 | O41: 1.154829196 | P41: 1 | Q41: 0.8810514869
A42: Angola | B42: 7.763474464 | C42: 5.468429801 | D42: 3.173385138 | E42: 2.954555731 | F42: 2.724202627 | G42: 2.544888023 | H42: 2.331073849 | I42: 2.220560748 | J42: 1.938009788 | K42: 1.722874094 | L42: 1.575027118 | M42: 1.38740843 | N42: 1.259323504 | O42: 1.116255232 | P42: 1 | Q42: 0.9047981721
A43: Madagascar | B43: 6.792369211 | C43: 5.699431359 | D43: 4.606493506 | E43: 4.253847691 | F43: 3.882159796 | G43: 3.506095552 | H43: 3.145433048 | I43: 2.79879011 | J43: 2.448740076 | K43: 2.122046066 | L43: 1.829450701 | M43: 1.572716524 | N43: 1.351924787 | O43: 1.162188729 | P43: 1 | Q43: 0.8633321163
A44: Malawi | B44: 11.08802884 | C44: 8.285938454 | D44: 5.483848065 | E44: 5.002590674 | F44: 4.477681159 | G44: 3.946857435 | H44: 3.426796806 | I44: 2.905397781 | J44: 2.468125899 | K44: 2.107503411 | L44: 1.618269432 | M44: 1.505066251 | N44: 1.30893069 | O44: 1.1449748 | P44: 1 | Q44: 0.8720293537
A45: Mozambique | B45: 5.373062639 | C45: 4.451411319 | D45: 3.52976 | E45: 3.252875258 | F45: 2.952489293 | G45: 2.657631611 | H45: 2.371130696 | I45: 2.114540401 | J45: 1.822771214 | K45: 1.688815739 | L45: 1.741612063 | M45: 1.399365683 | N45: 1.217158621 | O45: 1.094621415 | P45: 1 | Q45: 0.9128941488
A46: South Africa | B46: 10.42035223 | C46: 7.016185234 | D46: 3.612018241 | E46: 3.195328258 | F46: 2.819601539 | G46: 2.468036989 | H46: 2.159586631 | I46: 1.902343599 | J46: 1.678825379 | K46: 1.43367198 | L46: 1.276354091 | M46: 1.162948754 | N46: 1.089761228 | O46: 1.034243835 | P46: 1 | Q46: 1.017044278
A47: Zambia | B47: 11.55264418 | C47: 8.137661692 | D47: 4.722679201 | E47: 4.202509585 | F47: 3.705285802 | G47: 3.263941527 | H47: 2.835606773 | I47: 2.448619009 | J47: 2.115263158 | K47: 1.777008106 | L47: 1.511281023 | M47: 1.324653922 | N47: 1.181479667 | O47: 1.084750337 | P47: 1 | Q47: 0.9262502881
A48: Zimbabwe | B48: 8.256252762 | C48: 6.170187369 | D48: 4.084121977 | E48: 3.418011147 | F48: 2.905011219 | G48: 2.487086446 | H48: 2.112783318 | I48: 1.837275307 | J48: 1.625104603 | K48: 1.361214953 | L48: 1.147302087 | M48: 1.044179586 | N48: 0.985786802 | O48: 1.001116934 | P48: 1 | Q48: 0.8188334505
A49: Benin | B49: 11.02276542 | C49: 8.217897953 | D49: 5.413030484 | E49: 4.905742145 | F49: 4.406812652 | G49: 3.918649935 | H49: 3.45648855 | I49: 3.022696929 | J49: 2.618854829 | K49: 2.247146402 | L49: 1.924760893 | M49: 1.603683372 | N49: 1.368182505 | O49: 1.164309591 | P49: 1 | Q49: 0.8666858073
A50: Cameroon | B50: 8.036917311 | C50: 5.992067493 | D50: 3.947217676 | E50: 3.702552293 | F50: 3.439828846 | G50: 3.160878113 | H50: 2.868143303 | I50: 2.565009306 | J50: 2.202008674 | K50: 1.893239133 | L50: 1.623527432 | M50: 1.418363596 | N50: 1.257511569 | O50: 1.117779966 | P50: 1 | Q50: 0.9021368121
A51: Chad | B51: 8.23108659 | C51: 6.13682397 | D51: 4.04256135 | E51: 3.758645276 | F51: 3.465811966 | G51: 3.15186846 | H51: 2.828816743 | I51: 2.544160232 | J51: 2.331490491 | K51: 2.081129096 | L51: 1.804999144 | M51: 1.557311669 | N51: 1.327332242 | O51: 1.121476439 | P51: 1 | Q51: 0.9064568825
A52: Ghana | B52: 12.8788854 | C52: 8.736969603 | D52: 4.595053804 | E52: 4.023805588 | F52: 3.498131647 | G52: 3.038701623 | H52: 2.769370804 | I52: 2.405851537 | J52: 2.210516756 | K52: 1.839897196 | L52: 1.579698858 | M52: 1.374830547 | N52: 1.232280275 | O52: 1.103254465 | P52: 1 | Q52: 0.9155538838
A53: Liberia | B53: 8.732971271 | C53: 6.510903111 | D53: 4.288834951 | E53: 3.808189655 | F53: 3.349763033 | G53: 2.923076923 | H53: 2.529706514 | I53: 2.186881188 | J53: 1.911303407 | K53: 1.653720168 | L53: 1.66934341 | M53: 1.789367089 | N53: 1.311317254 | O53: 1.217780841 | P53: 1 | Q53: 0.900841193
A54: Mali | B54: 7.616669339 | C54: 5.678725125 | D54: 3.740780911 | E54: 3.388847949 | F54: 3.069187987 | G54: 2.771394134 | H54: 2.487558601 | I54: 2.218719846 | J54: 2.022280856 | K54: 1.83799627 | L54: 1.656779152 | M54: 1.477720651 | N54: 1.29893607 | O54: 1.136970496 | P54: 1 | Q54: 0.8777198117
A55: Morocco | B55: 6.781098291 | C55: 5.083099718 | D55: 3.385101145 | E55: 2.933314784 | F55: 2.545842389 | G55: 2.248471492 | H55: 1.987994217 | I55: 1.788149488 | J55: 1.622979422 | K55: 1.46123637 | L55: 1.317791667 | M55: 1.209538014 | N55: 1.124995554 | O55: 1.057723822 | P55: 1 | Q55: 0.9491042223
A56: Niger | B56: 13.02684438 | C56: 8.940508708 | D56: 4.854173036 | E56: 4.461365552 | F56: 4.057756197 | G56: 3.655156538 | H56: 3.279900847 | I56: 2.930060897 | J56: 2.605941244 | K56: 2.311544621 | L56: 2.024738587 | M56: 1.72605718 | N56: 1.44991325 | O56: 1.203882023 | P56: 1 | Q56: 0.8341914469
A57: Sierra Leone | B57: 5.117483775 | C57: 3.81556987 | D57: 2.513655966 | E57: 2.349305867 | F57: 2.189482471 | G57: 2.031758327 | H57: 1.880960918 | I57: 1.731353135 | J57: 1.573013493 | K57: 1.416689171 | L57: 1.240775781 | M57: 1.351713476 | N57: 1.377264374 | O57: 1.114273577 | P57: 1 | Q57: 0.8923286273
A58: Togo | B58: 10.77120594 | C58: 8.030654162 | D58: 5.290102389 | E58: 4.776579353 | F58: 4.258241758 | G58: 3.762135922 | H58: 3.156822811 | I58: 2.813067151 | J58: 2.498992342 | K58: 2.105978261 | L58: 1.766381766 | M58: 1.562106324 | N58: 1.315231226 | O58: 1.147723066 | P58: 1 | Q58: 0.8743477648
B60: 1900 | C60: 1925 | D60: 1950 | E60: 1955 | F60: 1960 | G60: 1965 | H60: 1970 | I60: 1975 | J60: 1980 | K60: 1985 | L60: 1990 | M60: 1995 | N60: 2000 | O60: 2005 | P60: 2010 | Q60: 2015

Sheet Outliers (hidden)
A1: E[x] + X*σ | B1: Asia | C1: Latin America and Carribean | D1: East and Central Africa | E1: West Africa | F1: Southern Africa | G1: Middle East and Europe | J1: STDEV Mult: | K1: User input
A2: Earthquake | B2: 13975809.87 | C2: 5492012.287 | D2: 271086.403 | E2: 169723.4567 | F2: 155178.0169 | G2: 275630.9208 | I2: Asia | J2: 9
A3: Flood | B3: 63522695.47 | C3: 3556708.85 | D3: 1871738.718 | E3: 2011939.806 | F3: 4297338.153 | G3: 485125.5885 | I3: East and Central Africa | J3: 5
A4: Mass Movement | B4: 2061650.835 | C4: 3480991.357 | D4: 11021.31315 | E4: 57540.29398 | F4: 14198.67194 | G4: 3080.345718 | I4: Latin America and Carribean | J4: 5
A5: Storm | B5: 16410388.66 | C5: 5557931.866 | D5: 86499.47231 | E5: 26365.38756 | F5: 3987033.833 | G5: 40001.17166 | I5: Middle East and Europe | J5: 5
A6: Volcano | B6: 494401.4368 | C6: 674542.1754 | D6: 45991.19887 | E6: 62057.87102 | I6: Southern Africa | J6: 5
I7: West Africa | J7: 5
A9: Location | B9: St Dev Mult | C9: Disaster | D9: Dist | E9: Number of Observations (N) | F9: Sqrt (N) | G9: Mean | H9: Variance | I9: Standard Deviation | J9: X * Std Dev | K9: Mean + X*StDev
A10: Asia | B10: =$J$2 -> 9 | C10: Earthquake | D10: Geometric | E10: 172 | F10: 13.11487705 | G10: 334227.6512 | H10: 5.08552915e+12 | I10: 2255111.782 | J10: 20296006.04 | K10: 20630233.69
A11: Asia | B11: =$J$2 -> 9 | C11: Flood | D11: Geometric | E11: 694 | F11: 26.34387974 | G11: 2535302.748 | H11: 1.062439651e+14 | I11: 10307471.32 | J11: 92767241.92 | K11: 95302544.67
A12: Asia | B12: =$J$2 -> 9 | C12: Mass Movement | D12: Geometric | E12: 70 | F12: 8.366600265 | G12: 100872.3 | H12: 2.396630696e+11 | I12: 489553.9496 | J12: 4405985.546 | K12: 4506857.846
A13: Asia | B13: =$J$2 -> 9 | C13: Storm | D13: Geometric | E13: 385 | F13: 19.62141687 | G13: 934224.1039 | H13: 1.182333156e+13 | I13: 3438507.17 | J13: 30946564.53 | K13: 31880788.63
A14: Asia | B14: =$J$2 -> 9 | C14: Volcano | D14: Geometric | E14: 57 | F14: 7.549834435 | G14: 38132.91228 | H14: 9061158678 | I14: 95190.11859 | J14: 856711.0673 | K14: 894843.9796
A15: East and Central Africa | B15: =$J$3 -> 5 | C15: Earthquake | D15: Geometric | E15: 13 | F15: 3.605551275 | G15: 18861.23077 | H15: 1440082686 | I15: 37948.42139 | J15: 189742.107 | K15: 208603.3377
A16: East and Central Africa | B16: =$J$3 -> 5 | C16: Flood | D16: Geometric | E16: 166 | F16: 12.88409873 | G16: 104879.259 | H16: 1.820987772e+11 | I16: 426730.3332 | J16: 2133651.666 | K16: 2238530.925
A17: East and Central Africa | B17: =$J$3 -> 5 | C17: Mass Movement | D17: Geometric | E17: 4 | F17: 2 | G17: 1867.75 | H17: 4575306.917 | I17: 2138.996708 | J17: 10694.98354 | K17: 12562.73354
A18: East and Central Africa | B18: =$J$3 -> 5 | C18: Storm | D18: Geometric | E18: 10 | F18: 3.16227766 | G18: 8397.5 | H18: 202002736.7 | I18: 14212.76668 | J18: 71063.8334 | K18: 79461.3334
A19: East and Central Africa | B19: =$J$3 -> 5 | C19: Volcano | D19: Geometric | E19: 2 | F19: 1.414213562 | G19: 6459 | H19: 33702050 | I19: 5805.346674 | J19: 29026.73337 | K19: 35485.73337
A20: Latin America and Carribean | B20: =$J$4 -> 5 | C20: Earthquake | D20: Geometric | E20: 99 | F20: 9.949874371 | G20: 332416.5253 | H20: 2.051054911e+12 | I20: 1432150.45 | J20: 7160752.25 | K20: 7493168.775
A21: Latin America and Carribean | B21: =$J$4 -> 5 | C21: Flood | D21: Geometric | E21: 338 | F21: 18.38477631 | G21: 156642.9379 | H21: 4.805400728e+11 | I21: 693209.9774 | J21: 3466049.887 | K21: 3622692.825
A22: Latin America and Carribean | B22: =$J$4 -> 5 | C22: Mass Movement | D22: Geometric | E22: 67 | F22: 8.185352772 | G22: 172784.9403 | H22: 1.408902319e+12 | I22: 1186971.912 | J22: 5934859.559 | K22: 6107644.499
A23: Latin America and Carribean | B23: =$J$4 -> 5 | C23: Storm | D23: Geometric | E23: 122 | F23: 11.04536102 | G23: 234675.6475 | H23: 5.079746241e+11 | I23: 712723.3854 | J23: 3563616.927 | K23: 3798292.575
A24: Latin America and Carribean | B24: =$J$4 -> 5 | C24: Volcano | D24: Geometric | E24: 35 | F24: 5.916079783 | G24: 43067.28571 | H24: 9643823237 | I24: 98202.96959 | J24: 491014.848 | K24: 534082.1337
A25: Middle East and Europe | B25: =$J$5 -> 5 | C25: Earthquake | D25: Geometric | E25: 8 | F25: 2.828427125 | G25: 30402.625 | H25: 2485362871 | I25: 49853.41383 | J25: 249267.0692 | K25: 279669.6942
A26: Middle East and Europe | B26: =$J$5 -> 5 | C26: Flood | D26: Geometric | E26: 44 | F26: 6.633249581 | G26: 32044.54545 | H26: 5999751012 | I26: 77458.0597 | J26: 387290.2985 | K26: 419334.8439
A27: Middle East and Europe | B27: =$J$5 -> 5 | C27: Mass Movement | D27: Geometric | E27: 3 | F27: 1.732050808 | G27: 573.3333333 | H27: 36894.33333 | I27: 192.0789768 | J27: 960.3948841 | K27: 1533.728217
A28: Middle East and Europe | B28: =$J$5 -> 5 | C28: Storm | D28: Geometric | E28: 4 | F28: 2 | G28: 7680 | H28: 189457670 | I28: 13764.36232 | J28: 68821.81159 | K28: 76501.81159
A29: Middle East and Europe | B29: =$J$5 -> 5 | C29: Volcano | D29: Geometric | E29: 0 | F29: 0 | G29: 0 | H29: 0 | I29: 0 | J29: 0 | K29: 0
A30: Southern Africa | B30: =$J$6 -> 5 | C30: Earthquake | D30: Geometric | E30: 5 | F30: 2.236067977 | G30: 17102.6 | H30: 1280175661 | I30: 35779.5425 | J30: 178897.7125 | K30: 196000.3125
A31: Southern Africa | B31: =$J$6 -> 5 | C31: Flood | D31: Geometric | E31: 111 | F31: 10.53565375 | G31: 174989.955 | H31: 2.458830192e+11 | I31: 495865.9287 | J31: 2479329.643 | K31: 2654319.598
A32: Southern Africa | B32: =$J$6 -> 5 | C32: Mass Movement | D32: Geometric | E32: 1 | F32: 1 | G32: 3149 | H32: 0 | I32: 0 | J32: 0 | K32: 3149
A33: Southern Africa | B33: =$J$6 -> 5 | C33: Storm | D33: Geometric | E33: 65 | F33: 8.062257748 | G33: 364117.3231 | H33: 1.166681305e+12 | I33: 1080130.226 | J33: 5400651.13 | K33: 5764768.453
A34: Southern Africa | B34: =$J$6 -> 5 | C34: Volcano | D34: Geometric | E34: 0 | F34: 0 | G34: 0 | H34: 0 | I34: 0 | J34: 0 | K34: 0
A35: West Africa | B35: =$J$7 -> 5 | C35: Earthquake | D35: Geometric | E35: 3 | F35: 1.732050808 | G35: 36593.66667 | H35: 2539137714 | I35: 50389.85726 | J35: 251949.2863 | K35: 288542.9529
A36: West Africa | B36: =$J$7 -> 5 | C36: Flood | D36: Geometric | E36: 103 | F36: 10.14889157 | G36: 125360.3301 | H36: 1.378999109e+11 | I36: 371348.7726 | J36: 1856743.863 | K36: 1982104.193
A37: West Africa | B37: =$J$7 -> 5 | C37: Mass Movement | D37: Geometric | E37: 3 | F37: 1.732050808 | G37: 6810.666667 | H37: 127116449.3 | I37: 11274.59309 | J37: 56372.96545 | K37: 63183.63211
A38: West Africa | B38: =$J$7 -> 5 | C38: Storm | D38: Geometric | E38: 8 | F38: 2.828427125 | G38: 3803.75 | H38: 31984425.07 | I38: 5655.47744 | J38: 28277.3872 | K38: 32081.1372
A39: West Africa | B39: =$J$7 -> 5 | C39: Volcano | D39: Geometric | E39: 2 | F39: 1.414213562 | G39: 13425 | H39: 185859200 | I39: 13633.01874 | J39: 68165.09371 | K39: 81590.09371

Sheet EPP (hidden)
A1: Country | B1: Region | C1: Disaster | D1: AvgOfTotal Population Affected (EPP)
A2: Burundi | B2: East and Central Africa | C2: Armed Conflict | D2: 3500000
A3: Ghana | B3: West Africa | C3: Drought | D3: 2676884
A4: Indonesia | B4: Asia | C4: Earthquake | D4: 1000000
A5: Indonesia | B5: Asia | C5: Flood | D5: 3333333.333
A6: Kosovo | B6: Middle East and Europe | C6: Avian Flu Epidemic | D6: 1000000
A7: Kosovo | B7: Middle East and Europe | C7: Interethnic Violence | D7: 40000
A8: Mozambique | B8: Southern Africa | C8: Storm | D8: 686000
A9: Mozambique | B9: Southern Africa | C9: Drought | D9: 357000
A10: Mozambique | B10: Southern Africa | C10: Flood | D10: 210500
A11: Nepal | B11: Asia | C11: Drought | D11: 400000
A12: Nepal | B12: Asia | C12: Earthquake | D12: 400000
A13: Nepal | B13: Asia | C13: Flood | D13: 450000
A14: Niger | B14: West Africa | C14: Drought | D14: 1800000
A15: Somalia | B15: East and Central Africa | C15: Civil Insecurity | D15: 4000000
A16: Somalia | B16: East and Central Africa | C16: Drought | D16: 1700000
A17: Somalia | B17: East and Central Africa | C17: Flood | D17: 100000
A18: Sri Lanka | B18: Asia | C18: Flood | D18: 45000
A19: Sudan | B19: East and Central Africa | C19: Drought | D19: 750000
A20: Sudan | B20: East and Central Africa | C20: Flood | D20: 90000
A21: Takikistan | B21: Asia | C21: Drought | D21: 2000000
A22: Takikistan | B22: Asia | C22: Earthquake | D22: 100000
A23: Takikistan | B23: Asia | C23: Flood | D23: 1610000
A24: Uganda | B24: East and Central Africa | C24: Avain Flu Outbreak | D24: 1200000
A25: Uganda | B25: East and Central Africa | C25: Displacement of Population | D25: 1000000
A26: Uganda | B26: East and Central Africa | C26: IDP Movements | D26: 300000
A27: Yemen | B27: Middle East and Europe | C27: Armed Conflict | D27: 2500000
A28: Yemen | B28: Middle East and Europe | C28: Earthquake | D28: 3000000
A29: Yemen | B29: Middle East and Europe | C29: Somali Refugee Crisis | D29: 90000

Sheet ItemData (hidden)
A1: Item | B1: Category | C1: Vendor | D1: Unit | E1: UnitsPerPackage | F1: PackageWeightKG | G1: UnitWeightKG | H1: PackageCoverage | I1: UnitCoverage | J1: PackagePrice | K1: UnitPrice | L1: Comment
A2: BP5Biscuit | B2: FOOD | D2: Box | E2: 216 | F2: 13.6 | G2: 0.063 | H2: 5.14 | I2: 0.0238 | L2: 1 carton box contains 24 packs, 9 bars per pack; 216 bars per box; 5 person HH eating 3 bars per day for two week is 210 bars
A3: PlumpyNut | B3: FOOD | C3: Techno Relief | D3: Carton | E3: 150 | F3: 13.8 | G3: 0.092 | H3: 3.57 | I3: 0.0238 | J3: 73.27 | K3: 0.49 | L3: Carton/box of 150 satchets; 20 month shelf life; 50 beneficiaries per day per carton; 3.57 beneficiaries per two week per carton
A4: ORS | B4: REHYDRATION | C4: Techno Relief | D4: Carton | K4: 0.105 | L4: Oral Rehydration Salts; treats diarrhoeal dehydration
A5: ORS | B5: REHYDRATION | C5: UNICEF | E5: 1000 | J5: 106.5 | K5: 0.107
A6: Water Tank 5kL | B6: WATERTANK | C6: Scan-Water | D6: Single | E6: 1 | F6: 83 | G6: 83 | H6: 3 per disaster for now | J6: 1456.9 | K6: 1456.9 | L6: Water storage tank, collapsible, 5,000 litres with truck harness; www.scan-water.com
A7: Water Tank 5kL | B7: WATERTANK | C7: Techno Relief | J7: 1179
A8: Water Tank 10kL | B8: WATERTANK
A9: TapStands | B9: TAPSTAND | C9: Scan-Water | D9: Single | E9: 4 | F9: 80 | G9: 19 | H9: 6000 | I9: 1500 | J9: 436.21 | K9: 109.05 | L9: 6-tap station; www.scan-water.com; Standard is 250 people / 50 HH per tap
A10: TapStands | B10: TAPSTAND | C10: Techno Relief | J10: 820
A11: NorAid Sanitation Module | B11: WATERPURIFIER | C11: Mediq Norge | D11: Box | E11: 1 | F11: 94 | G11: 94 | H11: 9000 | I11: 9000 | J11: 61500 | K11: 61500 | L11: NorAid Sanitation Module / Outdoor Ecomaster 2000; up to 1800 L/hr
A12: NorAid Sanitation filters | B12: WATERPURIFIER | C12: Mediq Norge | L12: NorAid Sanitation Module / Outdoor Ecomaster 2000; repalcement filters
A13: EmWat Kit 4000 | B13: WATERPURIFIER | C13: Scan-Water | D13: Single | E13: 1 | F13: 950 | G13: 950 | H13: 20000 | I13: 20000 | J13: 20333 | K13: 20333 | L13: EmWat Kit 4000: with 2 10,000 L pillow tanks and 4 6-tap stands
A14: EmWat Kit 4000 & U-CANs | B14: WATERPURIFIER | C14: Scan-Water | D14: Single | F14: 1580 | G14: 1580 | H14: 20000 | I14: 20000 | J14: 33200 | K14: 33200 | L14: EmWat Kit 4000: with 2 10,000 L pillow tanks and 4 6-tap stands and 4,000 U-CANs
A15: EmWat Unit | B15: WATERPURIFIER | C15: Scan-Water | D15: Single | E15: 1 | F15: 700 | G15: 700 | H15: 20000 | I15: 20000 | J15: 16833 | K15: 16833 | L15: EmWat Unit; up to 4,000 L/hr
A16: EmWat filters | B16: WATERPURIFIER | C16: Scan-Water | I16: 107.14 | L16: EmWat replacement filters
A17: PUR Relief Kits | B17: WATERPURIFIER | C17: Techno Relief | D17: Carton | I17: 0.0357 | K17: 0.09 | L17: Water purification powder
A18: U-CAN | B18: JERRYCAN | C18: Scan-Water | D18: Box | E18: 250 | F18: 38 | G18: 0.152 | H18: 625 | I18: 2.5 | J18: 992.5 | K18: 3.97 | L18: 10 L; >10,000 gets 10% discount
A19: Jerrycan | B19: JERRYCAN | C19: Techno Relief | I19: 2.5 | K19: 1.02
A20: Jerrycan Collapsable | B20: JERRYCAN | C20: Dinsons | D20: Carton | E20: 30 | F20: 6 | G20: 0.2 | H20: 300 | I20: 2.5 | J20: 75 | K20: 2.5 | L20: 10 L; spout; 30 pieces per carton; Vendor: HSNDS "H. Sheikh Noor-ud-Din & Sons FZCO" www.dinsons.com
A21: Jerrycan Collapsable | B21: JERRYCAN | C21: Priyanka | D21: Bale | E21: 50 | F21: 11.5 | G21: 0.23 | H21: 125 | I21: 2.5 | J21: 99 | K21: 1.98 | L21: 10 L; screw cap; 50 pcs per bale; Vendor: Priyanka
A22: Family Tent 4x4m | B22: SHELTER | C22: Techno Relief | J22: 130 | K22: 130 | L22: below HH space standards
A23: Family Tent 4x6m | B23: SHELTER | C23: Priyanka | D23: Single | E23: 1 | F23: 75 | G23: 75 | H23: 5 | I23: 5 | J23: 285 | K23: 285 | L23: Family Ridge Tent, double fly, 4x6m; Vendor: Priyanka
A24: Family Tent 4x6m | B24: SHELTER | C24: National Tent House | D24: Single | E24: 1 | H24: 5 | I24: 5 | J24: 189 | K24: 189 | L24: Family Ridge Tent, triple fly, 4x6m;
A25: Plastic Sheeting 4x6m | B25: SHELTER | C25: Reltex | D25: Bale | E25: 5 | F25: 20.9 | G25: 4.18 | H25: 25 | I25: 5 | J25: 59.5 | K25: 11.9 | L25: Reltex Relief Supplies; Bales of 5 Tarpaulins; stock 10,000, produce 5,000 per day
A26: Plastic Sheeting 4x6m | B26: SHELTER | C26: Toyop | I26: 5 | K26: 12.3
A27: Plastic Sheeting 4x6m | B27: SHELTER | C27: Techno Relief | I27: 5 | K27: 11.32
A28: Plastic Sheeting 4x5m | B28: SHELTER | C28: Dinsons | D28: Bale | E28: 5 | F28: 20.5 | G28: 4.1 | H28: 25 | I28: 5 | J28: 48.5 | K28: 9.7 | L28: Bales of 5 sheets; Vendor: HSNDS "H. Sheikh Noor-ud-Din & Sons FZCO" www.dinsons.com
A29: Blanket | B29: BLANKET | C29: Dinsons | D29: Bale | E29: 30 | F29: 45 | G29: 1.5 | H29: 50 | I29: 1.66 | J29: 85.5 | K29: 2.85 | L29: 30 per bale; 150 x 200 cm; 50% wool, 50% synthetic fibers; Vendor: HSNDS "H. Sheikh Noor-ud-Din & Sons FZCO" www.dinsons.com
A30: Blanket | B30: BLANKET | C30: Toyop | I30: 1.66 | K30: 2.2
A31: Blanket | B31: BLANKET | C31: Techno Relief | I31: 1.66 | K31: 2.45
A32: Blanket | B32: BLANKET | C32: Priyanka | D32: Bale | E32: 30 | F32: 42 | G32: 1.4 | H32: 50 | I32: 1.66 | J32: 81 | K32: 2.7 | L32: 30 per bale; 150 x 200 cm; 50% wool, 50% synthetic fibers; Vendor: Priyanka, USD 2.70 Each FOB Mumbai
A33: Mosquito Net | B33: MOSQUITONET | C33: Toyop | K33: 4.2 | L33: size unknown
A34: Mosquito Net | B34: MOSQUITONET | C34: Techno Relief | I34: 2.5 | K34: 5.9
A35: Mosquito Net | B35: MOSQUITONET | C35: Olyset | D35: Bale | E35: 40 | F35: 25.2 | G35: 0.63 | H35: 100 | I35: 2.5 | J35: 360 | K35: 9 | L35: 160x180x150 cm; Rectangular "large family"; Olyset Net made by Sumitomo Chemical America; discount at 270 & 630 bales ($7.50 & $7.25)
A36: Mosquito Net | B36: MOSQUITONET | C36: Priyanka | D36: Bale | E36: 100 | F36: 74 | G36: 0.74 | H36: 250 | I36: 2.5 | J36: 475 | K36: 4.75 | L36: 160x180x150 cm; Rectangular; Priyanka_Vietnam; 100 pc per bale
A37: Mosquito Net | B37: MOSQUITONET | C37: Dinsons | D37: Bale | E37: 50 | F37: 37.04 | G37: 0.74 | H37: 125 | I37: 2.5 | J37: 275 | K37: 5.5 | L37: 160x180x150 cm; Rectangular "DuraNet"; 50 pc per bale; Vendor: HSNDS "H. Sheikh Noor-ud-Din & Sons FZCO" www.dinsons.com
A38: Plastic Sleeping Mat | B38: SLEEPMAT | C38: Toyop | I38: 2.5 | K38: 1.25
A39: Plastic Sleeping Mat | B39: SLEEPMAT | C39: Techno Relief | I39: 2.5 | K39: 1.63
A40: Plastic Sleeping Mat | B40: SLEEPMAT | C40: Priyanka | D40: Bale | E40: 25 | F40: 20 | G40: 0.8 | H40: 62.5 | I40: 2.5 | J40: 31.25 | K40: 1.25 | L40: 1.8 x 0.9m; Priyanka_Mumbai
A41: Plastic Sleeping Mat | B41: SLEEPMAT | C41: Dinsons | D41: Bale | E41: 50 | F41: 40.5 | G41: 0.81 | H41: 125 | I41: 2.5 | J41: 98 | K41: 1.96 | L41: Bale of 50 pieces; Sleeping Mats: Waterproof & Tearproof Woven Mats; Vendor: HSNDS "H. Sheikh Noor-ud-Din & Sons FZCO" www.dinsons.com
A42: Hygiene Kit | B42: HYGIENEKIT | C42: Toyop | I42: 5 | K42: 15
A43: Hygiene Kit | B43: HYGIENEKIT | C43: Dinsons | D43: Single | E43: 1 | F43: 8.2 | G43: 8.2 | H43: 5 | I43: 5 | J43: 20 | K43: 20 | L43: Family hygiene parcel; Vendor: HSNDS "H. Sheikh Noor-ud-Din & Sons FZCO" www.dinsons.com
A44: Hygiene Kit | B44: HYGIENEKIT | C44: Priyanka | D44: Single | E44: 1 | F44: 8.2 | G44: 8.2 | H44: 5 | I44: 5 | J44: 13.3 | K44: 13.3 | L44: Family hygiene parcel; Vendor: Priyanka India, Exports: Works(hop?)

Sheet DisasterSupplyBasis (hidden)
A1: DisasterType | B1: Region | C1: FOOD | D1: WATERPURIFIER | E1: WATERTANK | F1: TAPSTAND | G1: JERRYCAN | H1: SHELTER | I1: BLANKET | J1: SLEEPMAT | K1: HYGIENEKIT | L1: MOSQUITONET | M1: REHYDRATION
A2: Earthquake | B2: EastAndCentralAfrica | C2: 1 | D2: 1 | E2: 1 | F2: 1 | G2: 1 | H2: 1 | I2: 1 | J2: 1 | K2: 1 | L2: 0 | M2: 0
A3: Earthquake | B3: WestAfrica | C3: 1 | D3: 1 | E3: 1 | F3: 1 | G3: 1 | H3: 1 | I3: 1 | J3: 1 | K3: 1 | L3: 0 | M3: 0
A4: Earthquake | B4: SouthernAfrica | C4: 1 | D4: 1 | E4: 1 | F4: 1 | G4: 1 | H4: 1 | I4: 1 | J4: 1 | K4: 1 | L4: 0 | M4: 0
A5: Earthquake | B5: Asia | C5: 1 | D5: 1 | E5: 1 | F5: 1 | G5: 1 | H5: 1 | I5: 1 | J5: 1 | K5: 1 | L5: 0 | M5: 0
A6: Earthquake | B6: LatinAmericaAndTheCaribbean | C6: 1 | D6: 1 | E6: 1 | F6: 1 | G6: 1 | H6: 1 | I6: 1 | J6: 1 | K6: 1 | L6: 0 | M6: 0
A7: Earthquake | B7: MiddleEastAndEurope | C7: 1 | D7: 1 | E7: 1 | F7: 1 | G7: 1 | H7: 1 | I7: 1 | J7: 1 | K7: 1 | L7: 0 | M7: 0
A8: MassMovement | B8: EastAndCentralAfrica | C8: 1 | D8: 1 | E8: 1 | F8: 1 | G8: 1 | H8: 1 | I8: 1 | J8: 1 | K8: 1 | L8: 0 | M8: 0
A9: MassMovement | B9: WestAfrica | C9: 1 | D9: 1 | E9: 1 | F9: 1 | G9: 1 | H9: 1 | I9: 1 | J9: 1 | K9: 1 | L9: 0 | M9: 0
A10: MassMovement | B10: SouthernAfrica | C10: 1 | D10: 1 | E10: 1 | F10: 1 | G10: 1 | H10: 1 | I10: 1 | J10: 1 | K10: 1 | L10: 0 | M10: 0
A11: MassMovement | B11: Asia | C11: 1 | D11: 1 | E11: 1 | F11: 1 | G11: 1 | H11: 1 | I11: 1 | J11: 1 | K11: 1 | L11: 0 | M11: 0
A12: MassMovement | B12: LatinAmericaAndTheCaribbean | C12: 1 | D12: 1 | E12: 1 | F12: 1 | G12: 1 | H12: 1 | I12: 1 | J12: 1 | K12: 1 | L12: 0 | M12: 0
A13: MassMovement | B13: MiddleEastAndEurope | C13: 1 | D13: 1 | E13: 1 | F13: 1 | G13: 1 | H13: 1 | I13: 1 | J13: 1 | K13: 1 | L13: 0 | M13: 0
A14: Storm | B14: EastAndCentralAfrica | C14: 1 | D14: 1 | E14: 1 | F14: 1 | G14: 1 | H14: 1 | I14: 1 | J14: 1 | K14: 1 | L14: 1 | M14: 1
A15: Storm | B15: WestAfrica | C15: 1 | D15: 1 | E15: 1 | F15: 1 | G15: 1 | H15: 1 | I15: 1 | J15: 1 | K15: 1 | L15: 1 | M15: 1
A16: Storm | B16: SouthernAfrica | C16: 1 | D16: 1 | E16: 1 | F16: 1 | G16: 1 | H16: 1 | I16: 1 | J16: 1 | K16: 1 | L16: 1 | M16: 1
A17: Storm | B17: Asia | C17: 1 | D17: 1 | E17: 1 | F17: 1 | G17: 1 | H17: 1 | I17: 1 | J17: 1 | K17: 1 | L17: 1 | M17: 1
A18: Storm | B18: LatinAmericaAndTheCaribbean | C18: 1 | D18: 1 | E18: 1 | F18: 1 | G18: 1 | H18: 1 | I18: 1 | J18: 1 | K18: 1 | L18: 0 | M18: 0
A19: Storm | B19: MiddleEastAndEurope | C19: 1 | D19: 1 | E19: 1 | F19: 1 | G19: 1 | H19: 1 | I19: 1 | J19: 1 | K19: 1 | L19: 0 | M19: 0
A20: Flood | B20: EastAndCentralAfrica | C20: 1 | D20: 1 | E20: 1 | F20: 1 | G20: 1 | H20: 1 | I20: 1 | J20: 1 | K20: 1 | L20: 1 | M20: 1
A21: Flood | B21: WestAfrica | C21: 1 | D21: 1 | E21: 1 | F21: 1 | G21: 1 | H21: 1 | I21: 1 | J21: 1 | K21: 1 | L21: 1 | M21: 1
A22: Flood | B22: SouthernAfrica | C22: 1 | D22: 1 | E22: 1 | F22: 1 | G22: 1 | H22: 1 | I22: 1 | J22: 1 | K22: 1 | L22: 1 | M22: 1
A23: Flood | B23: Asia | C23: 1 | D23: 1 | E23: 1 | F23: 1 | G23: 1 | H23: 1 | I23: 1 | J23: 1 | K23: 1 | L23: 1 | M23: 1
A24: Flood | B24: LatinAmericaAndTheCaribbean | C24: 1 | D24: 1 | E24: 1 | F24: 1 | G24: 1 | H24: 1 | I24: 1 | J24: 1 | K24: 1 | L24: 0 | M24: 0
A25: Flood | B25: MiddleEastAndEurope | C25: 1 | D25: 1 | E25: 1 | F25: 1 | G25: 1 | H25: 1 | I25: 1 | J25: 1 | K25: 1 | L25: 0 | M25: 0
A26: Volcano | B26: EastAndCentralAfrica | C26: 1 | D26: 1 | E26: 1 | F26: 1 | G26: 1 | H26: 1 | I26: 1 | J26: 1 | K26: 1 | L26: 0 | M26: 0
A27: Volcano | B27: WestAfrica | C27: 1 | D27: 1 | E27: 1 | F27: 1 | G27: 1 | H27: 1 | I27: 1 | J27: 1 | K27: 1 | L27: 0 | M27: 0
A28: Volcano | B28: SouthernAfrica | C28: 1 | D28: 1 | E28: 1 | F28: 1 | G28: 1 | H28: 1 | I28: 1 | J28: 1 | K28: 1 | L28: 0 | M28: 0
A29: Volcano | B29: Asia | C29: 1 | D29: 1 | E29: 1 | F29: 1 | G29: 1 | H29: 1 | I29: 1 | J29: 1 | K29: 1 | L29: 0 | M29: 0
A30: Volcano | B30: LatinAmericaAndTheCaribbean | C30: 1 | D30: 1 | E30: 1 | F30: 1 | G30: 1 | H30: 1 | I30: 1 | J30: 1 | K30: 1 | L30: 0 | M30: 0
A31: Volcano | B31: MiddleEastAndEurope | C31: 1 | D31: 1 | E31: 1 | F31: 1 | G31: 1 | H31: 1 | I31: 1 | J31: 1 | K31: 1 | L31: 0 | M31: 0
